Cogmind - Beta 16 @@@ ROGUE MODE // 2025.12.21 @ 12:56:56 Player: Wyvric Result: Establishing Free Derelict Territories! Performance ------------- Evolutions (9) 4500 Regions Visited (30) 6000 Robots Destroyed (607) 3035 Value Destroyed (36732) 36732 Prototype IDs (121) 2420 Alien Tech Used (8) 1600 Bonus (43275) 43275 TOTAL SCORE: 97562 Bonus ------- Triggered High Security 500 High Alert Combat Kills 13336 Follower Combat Kills 1266 Entered Garrisons 800 Entered DSFs 500 Met Imprinter 300 Acquired ECA 300 Met Warlord at Base 500 MAIN.C Attacked Warlord 500 Warlord Defense Kills 134 Scanned by Researcher 500 Destroyed MAIN.C Guards 500 Met MAIN.C 5000 Destroyed MAIN.C Shell 5000 Destroyed MAIN.C 10000 Met Warlord at Command 2000 Win 3000 Friendly Fire -861 Cogmind --------- Core Integrity 1571/1600 Matter 300/300 Energy 232/2170 System Corruption 6% Temperature Hot (223) Movement Hovering (24) Location Free Derelict Territories Parts ------- > --- POWER (3) -------- Experimental Antimatter Reactor Hybrid Graviton Reactor Concept Zero-point Core > --- PROPULSION (9) --- Cooled Antigrav System Experimental Antigrav System Experimental Antigrav System Experimental Antigrav System Gravjet Array Gravjet Array Concept Gyrokinetic System > --- UTILITY (11) ----- Concept Thermoelectric Network Concept Antigrav Storage Unit Concept Hypertargeting System Concept Core Analysis Suite Improved Armor Integrity Analyzer Experimental Kinecellerator Advanced Weapon Cycler Concept Reaction Jets Concept Phase Shift Module Centrium Medium Armor Plating AEGIS Remote Shield > --- WEAPON (3) ------- Concept Helical Railcannon Concept Heavy Railcannon > --- INVENTORY (25) --- Experimental Antimatter Reactor Concept Gyrokinetic System Concept Gyrokinetic System Advanced Heat Sink Experimental Coolant Injector Experimental Energy Well (0) Concept Chromion Battery (0) Concept Networked Targeting System Concept Core Analysis Suite Concept Reaction Jets Concept Phase Shift Module Heavy Regenerative Plating Graphene Brace Concept Hardlight Director Advanced Force Field Concept Matter Streamer Transdimensional Reconstructor Concept Disintegration Ray (39) Concept Plasma Driver Concept Helical Railcannon Concept Rapid Grenade Launcher Peak State ------------ > --- POWER ------------ Experimental Antimatter Reactor Hybrid Graviton Reactor Concept Zero-point Core > --- PROPULSION ------- Cooled Antigrav System Experimental Antigrav System Experimental Antigrav System Experimental Antigrav System Gravjet Array Gravjet Array Concept Gyrokinetic System > --- UTILITY ---------- Concept Thermoelectric Network Concept Antigrav Storage Unit Spectral Analyzer Concept Hypertargeting System Concept Core Analysis Suite Advanced Weapon Cycler Concept Reaction Jets Concept Phase Shift Module Centrium Medium Armor Plating Advanced Force Field Concept Network Penetrator > --- WEAPON ----------- Concept Plasma Driver Concept Heavy Railcannon > --- INVENTORY -------- Quantum Reactor Experimental Antimatter Reactor Concept Gyrokinetic System Concept Gyrokinetic System Advanced Heat Sink Experimental Coolant Injector Concept Chromion Battery Concept NT7 Matterbank Concept Networked Targeting System Concept Core Analysis Suite Improved Armor Integrity Analyzer Experimental Kinecellerator Concept Reaction Jets Concept Phase Shift Module Graphene Brace Concept Hardlight Director Advanced Component Analysis Suite Concept Matter Streamer Transdimensional Reconstructor Concept Disintegration Ray Concept Plasma Driver Concept Plasma Driver Concept Helical Railcannon Concept Helical Railcannon Concept Rapid Grenade Launcher [Rating: 313] Favorites ----------- Power Reinforced Deuterium Engine Engine Reinforced Deuterium Engine Power Core Neutrino Core Reactor Particle Reactor Propulsion Improved Heavy Treads Treads Improved Heavy Treads Leg Aluminum Leg Wheel Compact Wheel Hover Unit Gravjet Array Flight Unit VTOL Module Utility Cargo Storage Unit Device Advanced Weapon Cycler Storage Cargo Storage Unit Processor Experimental Targeting Computer Hackware Concept Network Penetrator Protection Hardened Heavy Armor Plating Artifact Phase Armor Weapon Heavy Linear Accelerator Energy Gun Pulse Rifle Energy Cannon HERF Cannon Ballistic Gun Gauss Rifle Ballistic Cannon Heavy Linear Accelerator Launcher Smartbomb Launcher Special Weapon Multitool Impact Weapon Power Maul Piercing Weapon Vortex Lance Build | -11 -10 -10 -10 -8 -7 -7 -7 -7 -7 -7 -6 -6 -6 -6 -6 -5 -5 -5 -5 -4 -4 -4 -4 -3 -3 -3 -3 -2 -1 -1 ------- Run | Yrd Mat Min Sub Mat Fac Gar Fac Low Low Zio Pro Fac Gar Fac DSF Fac Gar Fac Gar Fac Upp Upp War Pro Res Qua Frg Res Acc Com Slots Evolved 18 | . . . . 4 2 . . . . . . 2 . . . 2 . . . 2 . . . . 2 . . 2 2 . Power 2 | . . . . . . . . . . . . . . . . 1 . . . . . . . . . . . 1 . . Propulsion 7 | . . . . 3 1 . . . . . . . . . . . . . . . . . . . 2 . . 1 . . Utility 9 | . . . . 1 1 . . . . . . 2 . . . 1 . . . 2 . . . . . . . . 2 . Weapon . | . . . . . . . . . . . . . . . . . . . . . . . . . . . . . . . Parts Attached 367 | 7 9 7 5 53 12 32 1 5 1 4 2 22 20 . 3 7 23 9 5 8 7 1 20 4 21 4 54 10 1 10 Power 44 | 1 1 . 2 5 1 2 . . 1 . . 2 1 . . 1 7 1 1 2 2 . 4 . 1 . 8 1 . . Engine 16 | 1 1 . 2 4 1 1 . . 1 . . 1 . . . . 3 1 . . . . . . . . . . . . Core 8 | . . . . 1 . 1 . . . . . . . . . . 4 . . . 1 . . . . . 1 . . . Reactor 20 | . . . . . . . . . . . . 1 1 . . 1 . . 1 2 1 . 4 . 1 . 7 1 . . Propulsion 101 | 2 . 4 . 25 2 15 . . . . . 6 8 . 1 . 3 . 1 4 1 1 5 2 7 1 11 2 . . Treads 45 | 2 . 2 . 14 . 3 . . . . . 5 5 . 1 . . . 1 . 1 . 2 2 6 1 . . . . Leg 11 | . . . . 2 . 5 . . . . . . . . . . . . . . . . 1 . . . 3 . . . Wheel 24 | . . 2 . 8 2 . . . . . . . 3 . . . 3 . . 4 . 1 . . 1 . . . . . Hover 12 | . . . . . . . . . . . . 1 . . . . . . . . . . 1 . . . 8 2 . . Flight 9 | . . . . 1 . 7 . . . . . . . . . . . . . . . . 1 . . . . . . . Utility 132 | 2 2 1 2 7 6 8 1 3 . 2 . 10 7 . 2 5 3 4 1 2 4 . 7 2 10 1 26 6 1 7 Device 65 | 1 . . 1 3 3 4 1 2 . 2 . 3 3 . . 2 1 2 . . 2 . 3 1 6 . 18 3 1 3 Storage 10 | 1 1 . . 1 1 2 . . . . . . . . . . 1 . . . . . 1 . 1 . 1 . . . Processor 17 | . . . . 2 1 . . . . . . 2 . . . 1 . 1 . 2 . . . . 2 . 3 2 . 1 Hackware 5 | . . . . . . . . . . . . 2 . . . . . . . . . . . . . . 1 1 . 1 Protection 34 | . 1 1 1 1 1 2 . 1 . . . 3 4 . 2 2 1 1 1 . 2 . 3 1 1 . 3 . . 2 Artifact 1 | . . . . . . . . . . . . . . . . . . . . . . . . . . 1 . . . . Weapon 90 | 2 6 2 1 16 3 7 . 2 . 2 2 4 4 . . 1 10 4 2 . . . 4 . 3 2 9 1 . 3 Energy Gun 14 | 1 . 1 . 6 . 1 . . . 2 . . . . . . . . . . . . . . . . 2 . . 1 Energy Cannon 28 | . 2 . . 1 . . . . . . 2 3 2 . . . 6 3 . . . . 1 . 2 2 1 1 . 2 Ballistic Gun 12 | 1 . 1 . 5 1 1 . . . . . . . . . . 2 . 1 . . . . . . . . . . . Ballistic Cannon 11 | . . . . 1 . 2 . . . . . . 2 . . 1 . . . . . . 1 . 1 . 3 . . . Launcher 18 | . 4 . 1 3 1 1 . 2 . . . 1 . . . . 2 . . . . . . . . . 3 . . . Special Weapon 5 | . . . . . . 2 . . . . . . . . . . . 1 1 . . . 1 . . . . . . . Impact Weapon 1 | . . . . . 1 . . . . . . . . . . . . . . . . . . . . . . . . . Slashing Weapon . | . . . . . . . . . . . . . . . . . . . . . . . . . . . . . . . Piercing Weapon 1 | . . . . . . . . . . . . . . . . . . . . . . . 1 . . . . . . . Special Melee Weapon . | . . . . . . . . . . . . . . . . . . . . . . . . . . . . . . . Unidentified Prototypes 34 | . . . . 6 1 1 . . . . . 3 . . . 1 . . . . . 1 8 . . 4 6 . . 3 Corrupted Parts 9 | . . . . . . . . . . . . . . . . . . . . . . . . 1 . . 8 . . . System Corruption 61 | . . . . . . . . . . . . . . . . . . . . . . . . 2 . . 59 . . . Parts Lost 68 | . . 1 . 18 5 10 . . . . . 3 10 . . . 5 1 4 . 1 . 1 . 2 . 7 . . . Power 7 | . . . . 1 . . . . . . . . 1 . . . 2 . 1 . . . . . 1 . 1 . . . Propulsion 41 | . . 1 . 13 4 8 . . . . . 2 6 . . . 1 . 1 . 1 . 1 . 1 . 2 . . . Utility 11 | . . . . . . 2 . . . . . 1 2 . . . 1 1 1 . . . . . . . 3 . . . Weapon 9 | . . . . 4 1 . . . . . . . 1 . . . 1 . 1 . . . . . . . 1 . . . Highest Loss Streak 5 | . . 1 . 3 1 5 . . . . . 2 4 . . . 1 1 2 . 1 . 1 . 1 . 4 . . . To Critical Strikes 2 | . . . . 1 . . . . . . . . . . . . . . 1 . . . . . . . . . . . Average Backups 23 | 3 11 14 15 17 18 22 25 26 25 26 26 24 24 27 26 23 25 25 26 26 25 25 26 24 26 28 25 24 23 23 Power 1 | . . . . . 1 1 1 1 . 1 1 . 1 1 1 . 1 1 2 1 1 2 1 1 1 1 1 1 1 1 Propulsion 2 | 1 2 3 5 3 3 4 2 2 2 1 2 2 2 2 2 2 2 3 2 5 3 3 3 3 3 3 2 2 2 2 Utility 10 | . 4 8 6 5 6 4 7 9 10 11 15 12 12 12 13 13 10 12 9 9 10 11 11 13 14 14 13 13 13 13 Weapon 6 | . 3 3 3 6 5 9 11 10 9 9 6 6 6 10 7 6 7 4 8 7 8 7 9 5 6 5 4 6 6 5 Tool/Special . | . . . . . . . . . . . . . . . . . . . . . . . . . . . . . . . Unused Backups 162 | . 4 1 2 17 2 14 4 2 2 8 . 10 7 . 6 3 2 . 7 8 . . 11 1 3 9 25 3 . 11 Power 10 | . . . . 1 . 1 . . . . . 1 . . . . . . 2 . . . . . 1 . 2 . . 2 Propulsion 24 | . 1 . 2 . 1 . 1 . 1 . . . 4 . . . . . . 6 . . 2 . 1 1 2 . . 2 Utility 74 | . 2 1 . 10 1 3 . 1 1 6 . 8 3 . 4 1 . . 2 2 . . 2 1 1 3 13 3 . 6 Weapon 48 | . 1 . . 6 . 10 3 . . 2 . 1 . . 1 1 2 . 3 . . . 7 . . 3 8 . . . Tool/Special 6 | . . . . . . . . 1 . . . . . . 1 1 . . . . . . . . . 2 . . . 1 Average Slot Usage (%) 77 | . 99 99 100 95 85 78 61 61 61 60 68 67 75 73 73 67 64 69 73 81 89 89 89 82 80 74 73 86 87 88 Engine 3 | . 14 14 14 8 7 3 7 7 7 7 7 3 . . . . 1 2 . . . . . . . . . . . . Core 1 | . . . . . . 3 . . . . . . . . . . 7 8 5 1 2 5 4 . . . . 4 3 3 Reactor 3 | . . . . . . . . . . . . 2 6 6 6 10 . . 4 8 7 5 5 10 7 4 5 7 7 7 Treads 18 | . 27 14 28 23 22 10 23 23 23 23 23 23 20 13 13 9 4 5 9 10 12 15 10 22 27 29 15 . . . Wheel 5 | . . 12 . 14 16 3 . . . . . . 6 13 13 11 11 11 11 15 18 15 19 5 2 . . . . . Hover 1 | . . . . . . . . . . . . . . . . . . . . . . . . . . . 8 29 26 26 Device 10 | . 2 . 13 4 7 9 7 7 7 6 7 8 11 13 13 8 9 10 16 19 15 15 14 15 9 8 19 21 25 24 Storage 6 | . 14 14 14 9 7 7 7 7 7 7 7 6 6 6 6 5 5 5 5 5 5 5 5 5 4 4 4 4 3 3 Processor 5 | . . . . 8 11 . . . . . . 5 6 6 6 7 6 7 5 9 15 15 14 10 13 12 4 8 7 7 Protection 5 | . 11 14 . 4 1 6 7 6 7 7 7 5 7 6 6 5 5 4 5 5 5 5 5 5 3 3 2 3 3 3 Energy Cannon 3 | . 16 4 . 1 . . . . . . 6 4 4 . . . 2 5 . . . 1 2 5 5 5 6 2 3 4 Ballistic Gun 1 | . 7 10 12 7 1 7 . . . . . . . . . . . . . . . . . . . . . . . . Ballistic Cannon 3 | . . . . . 5 2 7 6 7 6 . 3 2 6 6 4 3 1 4 4 5 3 3 . 3 2 1 5 3 2 Launcher 1 | . 1 7 1 . . . . . . . 6 . 1 . . . . . . . . 1 1 4 . . 1 . . . Peak Build Rating 313 | 9 12 11 11 34 39 90 90 93 90 91 91 105 100 85 85 101 107 106 108 117 112 115 129 142 178 207 273 290 309 313 Average Rating 102 | 5 10 10 9 26 34 57 85 84 84 84 78 92 86 84 84 97 96 100 101 108 107 109 115 126 153 183 218 286 307 307 On Entrance 102 | . 9 11 10 10 29 36 90 83 90 84 91 82 83 85 83 85 101 105 93 101 105 109 107 122 139 173 202 270 290 309 Avg Prop Armor Cover (%) 12 | . . . . 15 19 4 . . . . . . 10 10 11 7 7 10 11 11 14 16 11 16 20 2 9 . . . Naked Turns . | . . . . . . . . . . . . . . . . . . . . . . . . . . . . . . . Heaviest Build 278 | 12 38 36 36 68 98 187 181 182 187 187 187 203 247 190 190 213 221 215 217 218 224 232 248 253 256 263 278 132 134 156 Greatest Support 270 | 40 40 40 40 86 38 225 225 225 225 225 225 225 190 56 56 56 56 56 56 64 64 64 64 168 262 270 270 143 143 149 Greatest Overweight (x) 7 | . . 1 . 5 3 7 . . . . . 1 6 3 3 3 3 3 3 4 4 4 7 7 7 1 1 . . 1 Average Overweight (x) 1 | . . . . 1 1 1 . . . . . . 2 3 3 3 3 3 3 3 3 3 3 4 . . . . . . Largest Inventory Capacity 30 | 8 15 15 15 20 25 30 30 30 30 30 30 30 30 30 30 30 30 30 30 30 30 30 30 30 30 30 30 25 25 25 Average Capacity 27 | 6 11 15 15 19 20 26 30 30 30 30 30 28 29 30 30 30 30 30 30 30 30 30 30 30 30 30 27 25 25 25 Most Carried 30 | 6 15 15 15 20 21 30 30 30 30 30 30 30 30 30 30 30 30 30 30 30 30 30 30 30 30 30 30 25 25 25 Average Carried 26 | 3 11 14 14 18 19 25 29 29 29 29 29 28 28 30 29 29 29 28 29 29 29 29 29 29 29 29 26 24 23 24 Final Capacity 30 | 8 15 15 15 20 25 30 30 30 30 30 30 25 30 30 30 30 30 30 30 30 30 30 30 30 30 30 25 25 25 25 Final Carried 30 | 6 15 15 15 20 21 30 30 30 30 30 30 25 30 30 30 29 30 29 30 30 30 30 29 30 30 29 25 25 23 22 Class Distribution -------------------- 40% | Hauler-Mutant 15% | Hauler-Tank 12% | Scavenger-Mutant 12% | Mutant 7% | Hauler-Skirmisher 4% | Sprinter Dominant Class ---------------- Mutant | -10/Materials Mutant | -10/Mines Mutant | -10/Subcaves Scavenger-Mutant | -8/Materials Scavenger-Mutant | -7/Factory Scavenger-Mutant | -7/Garrison Hauler-Mutant | -7/Factory Hauler-Mutant | -7/Lower Caves Hauler-Mutant | -7/Lower Caves Hauler-Mutant | -7/Zion Hauler-Mutant | -6/Proximity Caves Hauler-Mutant | -6/Factory Hauler-Mutant | -6/Garrison Hauler-Mutant | -6/Factory Hauler-Mutant | -6/DSF Hauler-Mutant | -5/Factory Hauler-Mutant | -5/Garrison Hauler-Mutant | -5/Factory Hauler-Mutant | -5/Garrison Commander-Mutant | -4/Factory Hauler-Skirmisher | -4/Upper Caves Hauler-Skirmisher | -4/Upper Caves Hauler-Tank | -4/Warlord Hauler-Tank | -3/Proximity Caves Hauler-Tank | -3/Research Hauler-Tank | -3/Quarantine Hauler-Tank | -3/Protoforge Sprinter | -2/Research Sprinter | -1/Access Hacker-Sprinter | -1/Command Resources | -11 -10 -10 -10 -8 -7 -7 -7 -7 -7 -7 -6 -6 -6 -6 -6 -5 -5 -5 -5 -4 -4 -4 -4 -3 -3 -3 -3 -2 -1 -1 ----------- Run | Yrd Mat Min Sub Mat Fac Gar Fac Low Low Zio Pro Fac Gar Fac DSF Fac Gar Fac Gar Fac Upp Upp War Pro Res Qua Frg Res Acc Com Matter Collected 28008 | 271 418 168 61 1621 710 2069 345 754 478 147 297 1623 2108 . 202 764 1896 1054 1694 459 695 737 365 472 1110 1176 4886 607 20 801 Remotely 8257 | . . . . 147 399 572 345 . . . . 869 552 . . 314 773 950 242 209 55 . 112 . 614 367 1378 . . 359 Salvage Created 26754 | 74 523 176 67 1935 641 1751 200 370 473 . 356 1211 2503 . 189 664 1390 1255 1857 141 236 411 64 186 1051 1226 5142 1075 237 1350 Parts 1164 | 6 29 7 10 111 28 74 8 7 13 . 16 60 117 . 17 28 64 55 67 4 6 11 1 8 44 75 237 30 10 21 Haulers Intercepted 2 | . . . . 1 . . . . . . . 1 . . . . . . . . . . . . . . . . . . Recyclers Shooed 9 | . . . . . . . . . . . . 2 . . . 1 . 1 . . . . . . 4 1 . . . . Parts Field Recycled . | . . . . . . . . . . . . . . . . . . . . . . . . . . . . . . . Retrieved Matter . | . . . . . . . . . . . . . . . . . . . . . . . . . . . . . . . Parts Self-Destructed 52 | . . . 8 . . . . 6 15 . 6 . . . . . . . . . 9 5 . 3 . . . . . . Prevented 8 | . . . . . . . . 2 . . 3 . . . . . . . . . 3 . . . . . . . . . Parts Restored 17 | . . . . . . . . . . . . . . . . . . . . . . . . . . . 17 . . . Faulty 17 | . . . . . . . . . . . . . . . . . . . . . . . . . . . 17 . . . Kills | -11 -10 -10 -10 -8 -7 -7 -7 -7 -7 -7 -6 -6 -6 -6 -6 -5 -5 -5 -5 -4 -4 -4 -4 -3 -3 -3 -3 -2 -1 -1 ------- Run | Yrd Mat Min Sub Mat Fac Gar Fac Low Low Zio Pro Fac Gar Fac DSF Fac Gar Fac Gar Fac Upp Upp War Pro Res Qua Frg Res Acc Com Combat Hostiles Destroyed 536 | . 18 5 2 51 20 24 . 9 9 . 5 25 45 . 8 17 38 25 55 1 5 8 1 10 14 17 97 10 5 12 Guns 51 | . 2 1 . 36 . 11 . . . . . . . . . . . . . . . . . . . . 1 . . . Cannons 265 | . 5 2 . 6 4 2 . 6 6 . 2 23 15 . 8 17 29 9 50 1 5 2 . 1 6 10 41 8 4 3 AOE 146 | . 11 2 2 8 16 11 . 3 3 . 3 2 15 . . . 8 13 5 . . 6 1 9 . . 23 . . 5 Classes Destroyed 33 | 1 4 1 2 9 3 . . 1 1 . 1 2 2 . . . . . . . . . . . . 1 5 . . . Worker 13 | . . . . 6 1 . . . . . . 2 . . . . . . . . . . . . 1 1 1 1 . . Builder 13 | . . . . 1 . . 2 . . . . 3 . . . . . 4 . . . . . . 1 1 1 . . . Tunneler 5 | 3 1 . . . . . 1 . . . . . . . . . . . . . . . . . . . . . . . Hauler 2 | . . . . 1 . . . . . . . 1 . . . . . . . . . . . . . . . . . . Recycler 13 | . 1 . . 1 2 . 3 . . . . 1 . . . 1 . . . 1 . . . . . 1 . 2 . . Mechanic 3 | . . . . 1 . . . . . . . . . . . . . 1 . . . . . . . . 1 . . . Operator 7 | . . . . . 1 . . . . . . 3 . . . 1 . 1 . . . . . . 1 . . . . . Drone 8 | . . . . . . . . . . . . . . . . . . . . . . . . . . . 8 . . . Watcher 6 | . 1 . . 2 1 . . . . . . 1 . . . . . . . . . . . . . . 1 . . . Swarmer 103 | . 5 . . 15 3 15 . . . . . 2 4 . 3 3 21 . 9 . . 4 . 5 . 5 . . 4 5 Cutter 4 | . . . . . . . . . . . . . 4 . . . . . . . . . . . . . . . . . Saboteur 2 | . . . . . . . . . . . . . . . . . . . . . . . . . . . 2 . . . Grunt 189 | . 13 4 . 15 8 7 . 6 6 . 3 5 12 . 2 6 6 18 32 . 3 . 1 3 4 5 25 4 1 . Brawler 18 | . . . . 3 2 . . 2 . . . . 5 . . . . . 2 . . 2 . . . . 2 . . . Duelist 8 | . . . . . . . . . . . . 1 . . . . . 1 . . . . . . . . 6 . . . Protector 4 | . . . . . . . . . . . . . 1 . . . . 1 . . . . . . . . 2 . . . Researcher 8 | . . . . . . . . . . . . . . . . . . . . . . . . . . 2 6 . . . Sentry 63 | . . . . 12 2 2 . 1 1 . 1 3 16 . . . 3 1 5 1 1 1 . . 3 . 9 1 . . Demolisher 1 | . . . . . 1 . . . . . . . . . . . . . . . . . . . . . . . . . Specialist 17 | . . . . 2 . . . . . . . 4 1 . 2 . 2 . 4 . . . . . 2 . . . . . Hunter 23 | . . . . 3 . . . . . . . 2 . . . 4 2 1 . . . 2 . . 2 . 4 3 . . Programmer 41 | . . . . . 1 . . . 1 . 1 5 . . . 4 2 3 3 . 1 1 . 1 1 7 7 2 . 1 Heavy 5 | . . . . 1 . . . . . . . 2 . . 1 . . . . . . . . . 1 . . . . . Q-Series 1 | . . . . . . . . . . . . . . . . . . . . . . . . . . . 1 . . . Behemoth 7 | . . . . . . . . . . . . 1 2 . . . 2 . . . . . . 1 1 . . . . . M Guard 2 | . . . . . . . . . . . . . . . . . . . . . . . . . . . . . . 2 Hotshot 8 | . . . . . . . . . . . . . . . . . . . . . . . . . . . 8 . . . Decapitator 14 | . . . . . . . . . . . . . . . . . . . . . . . . . . . 14 . . . Immortal 4 | . . . . . . . . . . . . . . . . . . . . . . . . . . . 4 . . . Combat Programmer 2 | . . . . . . . . . . . . . . . . . . . . . . . . . . . . . . 2 Alpha 7 2 | . . . . . . . . . . . . . . . . . . . . . . . . . . . 2 . . . V-Series 3 | . . . . . . . . . . . . . . . . . . . . . . . . . . . 3 . . . Artisan 1 | . . . 1 . . . . . . . . . . . . . . . . . . . . . . . . . . . Subdweller 2 | . . . 2 . . . . . . . . . . . . . . . . . . . . . . . . . . . Decomposer 5 | . . . . . . . . . 1 . 3 . . . . . . . . . 1 . . . . . . . . . Packrat 5 | . . . . . . . . . 3 . . . . . . . . . . . . 2 . . . . . . . . Samaritan 4 | . . . . . . . . . . . 3 . . . . . . . . . . 1 . . . . . . . . Thief 1 | . . . . . . . . . 1 . . . . . . . . . . . . . . . . . . . . . Assembled 4 | . . 1 . . 3 . . . . . . . . . . . . . . . . . . . . . . . . . Wasp 1 | . . . . . . . . . . . . . . . . . . . . . . . . . . . . 1 . . Thug 1 | . . . . . . . . . 1 . . . . . . . . . . . . . . . . . . . . . Fireman 2 | . . . . . . . . 2 . . . . . . . . . . . . . . . . . . . . . . Infiltrator 1 | . . . . . . . . 1 . . . . . . . . . . . . . . . . . . . . . . Best Kill Streak 16 | 2 5 2 2 8 5 7 3 4 4 . 3 7 16 . 3 5 8 12 13 1 2 4 1 5 5 11 14 5 5 5 Combat Bots Only 16 | . 4 2 2 6 5 7 . 4 4 . 3 5 16 . 3 5 8 7 13 1 2 4 1 5 5 10 13 4 5 5 Max Kills in Single Turn 5 | 1 2 1 1 3 2 4 1 4 3 . 2 2 3 . 1 1 2 4 2 1 1 3 1 3 2 2 4 2 1 5 Gunslinging 1 | . . . . 1 . . . . . . . . . . . . . . . . . . . . . . . . . . Exploded 5 | . 2 1 1 2 2 4 . 3 3 . 2 1 3 . . . 2 3 2 . . 3 1 3 . . 3 . . 5 Melee . | . . . . . . . . . . . . . . . . . . . . . . . . . . . . . . . Uniques/NPCs Destroyed 2 | . . . . . . . . . . . . . . . . . . . . . . . . . . . . . . 2 MAIN.C Shell (-1/Command) MAIN.C (-1/Command) Combat | -11 -10 -10 -10 -8 -7 -7 -7 -7 -7 -7 -6 -6 -6 -6 -6 -5 -5 -5 -5 -4 -4 -4 -4 -3 -3 -3 -3 -2 -1 -1 -------- Run | Yrd Mat Min Sub Mat Fac Gar Fac Low Low Zio Pro Fac Gar Fac DSF Fac Gar Fac Gar Fac Upp Upp War Pro Res Qua Frg Res Acc Com Hostile Shots Fired 2793 | . 40 46 14 272 116 197 . 78 26 . 36 229 424 . 11 68 178 103 89 13 35 32 17 57 131 94 374 29 12 72 Missed 890 | . 14 6 4 61 41 59 . 24 6 . 14 62 149 . 5 20 54 33 26 4 8 11 8 9 43 33 109 25 10 52 Hits 1903 | . 26 40 10 211 75 138 . 54 20 . 22 167 275 . 6 48 124 70 63 9 27 21 9 48 88 61 265 4 2 20 Melee 53 | . . 6 . . 3 . . . 7 . . . 5 . . . . . . . . . . . . . 32 . . . Projectile 1850 | . 26 34 10 211 72 138 . 54 13 . 22 167 270 . 6 48 124 70 63 9 27 21 9 48 88 61 233 4 2 20 AOE 37 | . . . . . 4 . . . . . . . 7 . . . . . . . . . . . . . 26 . . . Critical Strikes 94 | . . 2 . 12 1 2 . 1 . . 2 5 2 . 1 3 2 3 2 . 2 1 . 1 1 2 43 2 . 4 Actively Blocked 25 | . . . . . . . . . . . . . . . . . . . . . . . . . . . 25 . . . Part Disruptions 2 | . . . . . . . . . . . . . . . . . . . . . . . . . . 2 . . . . Damage Taken 30402 | . 327 631 199 3092 1098 1737 71 745 281 . 312 2826 3442 . 148 898 1913 1323 923 237 376 260 233 778 1822 1189 4971 120 20 430 Core 2092 | . 35 74 48 308 63 309 . 44 6 . . 117 223 . . 83 48 88 41 16 15 42 . 80 38 65 300 20 . 29 Absorbed by Shields 4149 | . . . . . 59 . . . . . . . 157 . . . 222 161 331 54 168 120 72 240 275 271 1479 81 28 431 Reduced by Siege Mode 231 | . . . . . . . . . . . . 75 125 . . . . . . . . . . . 31 . . . . . Ignored by Resistances 36 | . . . . . . . . . . . . 20 16 . . . . . . . . . . . . . . . . . Regen/Repaired (Parts) 842 | . . . . . 174 . . . . 333 . . . . . . . . . . . . 293 . . . . . . 42 Core Remaining (%) 67 | 100 . . 37 44 . . . . . . 39 . . . 60 . . . 74 . . . . 86 . . 42 98 . 98 Volleys Fired 2047 | 9 32 21 7 154 46 206 11 33 24 1 23 130 184 . 11 46 155 57 159 14 22 34 2 25 80 86 365 39 24 47 Largest 3 | 2 2 2 2 2 2 2 1 2 2 1 2 1 2 . 1 1 2 2 1 1 1 1 1 1 1 2 2 1 1 3 Hottest 420 | 60 136 88 70 131 56 78 70 78 78 70 150 90 180 . 70 70 210 196 70 70 70 98 46 70 113 300 207 140 140 420 Shots Fired 2385 | 18 58 42 12 288 47 262 11 37 25 1 28 130 195 . 11 45 184 63 160 14 22 34 2 25 80 88 370 39 24 70 Gun 565 | 18 14 26 7 237 2 196 . . . . . . . . . . 32 . . . . . . . . . 22 . . 11 Cannon 1561 | . 28 12 . 35 32 30 11 33 23 1 22 126 156 . 11 45 135 39 136 14 22 23 . 15 80 88 323 39 24 58 Launcher 189 | . 16 4 5 16 13 11 . 4 2 . 6 4 22 . . . 8 21 8 . . 11 2 10 . . 25 . . 1 Special 70 | . . . . . . 25 . . . . . . 17 . . . 9 3 16 . . . . . . . . . . . Kinetic 1113 | 9 10 19 4 101 34 225 11 33 23 1 2 66 55 . 11 45 124 25 136 14 22 11 . 15 24 1 52 9 . 31 Thermal 718 | 9 32 19 3 171 . 25 . . . . . 49 74 . . . 49 14 . . . 12 . . 9 71 100 30 24 27 Explosive 159 | . 16 4 5 16 13 11 . 4 2 . 6 3 10 . . . 3 9 8 . . 11 2 10 . . 25 . . 1 Electromagnetic 343 | . . . . . . 1 . . . . 20 12 56 . . . 8 12 . . . . . . 47 16 171 . . . Entropic 33 | . . . . . . . . . . . . . . . . . . . . . . . . . . . 22 . . 11 Robot Hit Streak 44 | 4 7 8 6 14 10 37 6 3 3 . 13 15 44 . 23 9 25 19 29 5 6 5 . 20 31 38 21 7 2 7 Robot Miss Streak 10 | 2 3 3 1 4 1 4 2 4 3 . 6 2 1 . 1 2 10 3 4 1 2 1 . . 2 2 3 2 4 2 Penetration Max 1 | . . . . 1 . 1 . 1 . . . . . . 1 . . . . . . . . . . . 1 1 . 1 Secondary Targets 5 | . . . . 3 . 2 . . . . . . . . . . . . . . . . . . . . . . . . Max Gunslinging Chain 1 | . . . . 1 . 1 . . . . . . . . . . . . . . . . . . . . . . . . Shots Hit Robots 1542 | 11 31 24 6 184 26 197 7 17 15 . 20 84 153 . 9 31 110 49 124 9 16 9 . 15 60 38 230 21 5 41 Core Hits 1060 | 4 26 9 4 108 54 105 5 18 13 . 18 47 78 . 7 14 76 57 107 2 5 17 9 17 24 20 175 15 4 22 Critical Kills 25 | . . . . . . 2 . . . . . . 3 . . . 1 . . . . 1 . . . 4 7 2 1 4 Critical Parts Destroyed 2 | . 1 . . . . 1 . . . . . . . . . . . . . . . . . . . . . . . . Critical Strikes 86 | . 1 . 1 3 3 3 . 2 1 . 1 7 11 . 3 5 3 2 6 . 1 2 . . 3 4 11 3 1 9 Burn 4 | . . . 1 3 . . . . . . . . . . . . . . . . . . . . . . . . . . Meltdown 21 | . . . . . . . . . . . . . 3 . . . . . . . . 1 . . . 3 7 2 1 4 Destroy 7 | . 1 . . . . 3 . . . . . . . . . . 1 . . . . . . . . 1 . . . 1 Blast 50 | . . . . . 3 . . 2 1 . 1 6 6 . 3 5 2 2 6 . 1 1 . . 2 . 4 1 . 4 Corrupt 4 | . . . . . . . . . . . . 1 2 . . . . . . . . . . . 1 . . . . . Melee Attacks 1 | . . . . . . . . . . . . . . . . . . . . . . . 1 . . . . . . . Impact . | . . . . . . . . . . . . . . . . . . . . . . . . . . . . . . . Slashing . | . . . . . . . . . . . . . . . . . . . . . . . . . . . . . . . Piercing . | . . . . . . . . . . . . . . . . . . . . . . . . . . . . . . . Entropic 1 | . . . . . . . . . . . . . . . . . . . . . . . 1 . . . . . . . Sneak Attacks . | . . . . . . . . . . . . . . . . . . . . . . . . . . . . . . . Combat Hostiles . | . . . . . . . . . . . . . . . . . . . . . . . . . . . . . . . Follow-up Attacks . | . . . . . . . . . . . . . . . . . . . . . . . . . . . . . . . Damage Inflicted 92433 | 160 1346 422 214 4775 3223 4731 558 2184 1482 . 1299 5504 8610 . 913 2415 5257 4407 7299 693 1185 1657 521 2604 3599 1943 18499 2233 505 4195 Guns 7334 | 160 106 191 38 2867 16 2542 . . . . . . . . . . 212 . . . . . . . . . 861 . . 341 Cannons 58825 | . 284 161 . 428 945 678 555 1651 1230 . 710 4919 6051 . 913 2415 4044 1796 6590 693 1185 592 . 1117 2986 1856 10812 2177 505 3532 Explosions 25695 | . 928 69 176 1443 2262 1347 . 533 252 . 589 579 2456 . . . 944 2611 709 . . 1065 521 1487 546 . 6800 56 . 322 Melee . | . . . . . . . . . . . . . . . . . . . . . . . . . . . . . . . Ramming 255 | . 28 1 . 37 . . 3 . . . . 6 . . . . . . . . . . . . 67 87 26 . . . Kinetic 42485 | 93 84 129 . 1086 961 3220 555 1651 1230 . 191 3733 3292 . 913 2415 3753 1466 6590 693 1185 527 . 1117 1481 74 3600 360 . 2086 Thermal 14913 | 67 404 223 38 2346 . 164 . . . . 87 950 2527 . . . 740 400 . . . 65 . . 25 1183 1926 1817 505 1446 Explosive 21540 | . 830 69 176 1101 2262 1347 . 533 252 . 502 253 565 . . . 371 1835 709 . . 1065 521 1487 521 . 6763 56 . 322 Electromagnetic 12038 | . . . . 205 . . . . . . 519 562 2226 . . . 393 706 . . . . . . 1505 599 5323 . . . Impact . | . . . . . . . . . . . . . . . . . . . . . . . . . . . . . . . Slashing . | . . . . . . . . . . . . . . . . . . . . . . . . . . . . . . . Piercing . | . . . . . . . . . . . . . . . . . . . . . . . . . . . . . . . Entropic 1202 | . . . . . . . . . . . . . . . . . . . . . . . . . . . 861 . . 341 Highest Corruption 28 | . 3 3 3 7 . . 1 1 1 1 . 1 1 1 1 1 2 4 4 . . . . 2 2 9 28 . . 6 Average Corruption 3 | . 1 3 3 3 . . 1 1 1 1 . 1 1 1 1 1 1 2 4 . . . . 2 1 6 11 . . 5 Corruption Purged 92 | . . . . . . . . . . . . . . . . . . . . . . . . . 2 1 89 . . . Corruption Blocked . | . . . . . . . . . . . . . . . . . . . . . . . . . . . . . . . Effects 336 | . 10 12 12 32 . . 1 10 11 2 . . 16 . 2 6 24 16 31 . . . . 2 15 30 99 . . 5 Message Errors 73 | . 3 2 . 8 . . . 3 3 2 . . 2 . 1 . 7 2 10 . . . . . 4 7 18 . . 1 Matter Fused 91 | . 2 3 6 9 . . . 2 3 . . . 6 . . . 5 6 6 . . . . 1 4 10 27 . . 1 Heat Flow Errors 34 | . 1 2 4 2 . . 1 1 2 . . . 1 . . 1 2 1 2 . . . . . 2 3 9 . . . Energy Discharges 50 | . 3 2 . 6 . . . 1 2 . . . 4 . . 1 4 4 5 . . . . 1 1 4 11 . . 1 Parts Rejected 8 | . . . . 2 . . . . . . . . . . . . . . 1 . . . . . . 1 4 . . . Parts Fused 3 | . . 1 . 1 . . . . . . . . . . . . . . . . . . . . 1 . . . . . Data Loss (minor) 32 | . 1 2 2 3 . . . . 1 . . . 1 . 1 . 3 1 2 . . . . . 2 3 9 . . 1 Data Loss (major) 13 | . . . . 1 . . . 1 . . . . . . . 2 . 2 4 . . . . . . . 3 . . . Misfires 13 | . . . . . . . . 2 . . . . 2 . . . . . 1 . . . . . . 1 7 . . . Alerts 11 | . . . . . . . . . . . . . . . . 1 3 . . . . . . . 1 1 5 . . . Misdirections 1 | . . . . . . . . . . . . . . . . . . . . . . . . . . . 1 . . . Weapon Failures 7 | . . . . . . . . . . . . . . . . 1 . . . . . . . . . . 5 . . 1 Overload Shots . | . . . . . . . . . . . . . . . . . . . . . . . . . . . . . . . Overflow Damage 3485 | . 34 . . 81 41 117 154 165 199 . 69 361 126 . 58 312 140 36 72 65 76 190 . 24 159 32 888 28 17 41 Projectiles 2920 | . . . . 18 16 117 154 147 199 . 68 360 102 . 58 312 139 28 72 65 76 163 . . 103 23 655 28 17 . Explosions 556 | . 34 . . 63 25 . . 18 . . 1 1 24 . . . 1 8 . . . 27 . 24 56 . 233 . . 41 Melee 9 | . . . . . . . . . . . . . . . . . . . . . . . . . . 9 . . . . Knockbacks 134 | . 1 . . 1 4 2 1 6 3 . . 5 7 . 3 12 10 3 46 . 1 2 . . 1 2 11 2 . 11 Impact 4 | . 1 . . 1 . . . . . . . . . . . . . . . . . . . . . 2 . . . . Kinetic 120 | . . . . . 4 2 1 5 3 . . 5 6 . 3 11 9 3 40 . 1 2 . . 1 . 11 2 . 11 Secondary 10 | . . . . . . . . 1 . . . . 1 . . 1 1 . 6 . . . . . . . . . . . Self-Inflicted Damage 928 | . 37 . 19 4 198 54 . . . . 20 23 187 . . . . 63 6 . . . . 7 112 . 198 . . . Shots 31 | . 3 . 3 . 4 1 . . . . 1 2 4 . . . . 3 1 . . . . 1 2 . 6 . . . Rammed 28 | . 9 1 . 8 . . 1 . . . . 2 . . . . . . . . . . . . 3 3 1 . . . Targets Rammed 31 | . 10 1 . 9 . . 1 . . . . 2 . . . . . . . . . . . . 3 4 1 . . . Kicked . | . . . . . . . . . . . . . . . . . . . . . . . . . . . . . . . Crushed 3 | . 1 . . 1 . . . . . . . . . . . . . . . . . . . . . 1 . . . . Highest Temperature 430 | . 276 324 237 342 18 86 238 396 262 32 348 404 349 . . 346 380 336 204 51 115 272 4 301 308 258 186 430 243 223 Average Temperature 97 | . 95 122 93 99 8 24 53 121 76 16 91 108 99 . . 101 96 111 31 25 38 72 4 75 93 80 50 137 149 155 Received Heat Transfer 6957 | . 126 294 48 1017 287 291 . 425 66 . 90 884 877 . 9 159 206 327 252 30 65 18 27 362 351 66 672 . . 8 Thermoelectric Energy+ 2567 | . . . . . . . . . . . . . . . . . . . . . . . . . . . . . 520 2047 Effects 36 | . 1 1 . 5 . . . 1 1 . 1 4 6 . . 3 . 4 . . . . . . 2 . . 4 . 3 Shutdowns 5 | . . . . 1 . . . . . . 1 1 1 . . . . 1 . . . . . . . . . . . . Energy Bleed 9 | . 1 1 . 2 . . . . 1 . . . . . . . . . . . . . . . 1 . . 2 . 1 Interference 15 | . . . . 1 . . . . . . . 2 3 . . 2 . 2 . . . . . . 1 . . 2 . 2 Matter Decay 2 | . . . . 1 . . . . . . . . 1 . . . . . . . . . . . . . . . . . Short Circuit 1 | . . . . . . . . . . . . . . . . . . 1 . . . . . . . . . . . . Damage (minor) 4 | . . . . . . . . 1 . . . 1 1 . . 1 . . . . . . . . . . . . . . Siege Activations 6 | . . . . . . . . . . . . 1 4 . . . . . . . . . . . 1 . . . . . Total Turns 125 | . . . . . . . . . . . . 36 71 . . . . . . . . . . . 18 . . . . . Longest Duration 36 | . . . . . . . . . . . . 36 24 . . . . . . . . . . . 18 . . . . . Martial Activations . | . . . . . . . . . . . . . . . . . . . . . . . . . . . . . . . Shielding Activations . | . . . . . . . . . . . . . . . . . . . . . . . . . . . . . . . Robots Disrupted 2 | . . . . 1 . . . . . . . . . . . . . . . . . . . . 1 . . . . . Combat Hostiles 2 | . . . . 1 . . . . . . . . . . . . . . . . . . . . 1 . . . . . Robots Corrupted 57 | . . . . . . . . . . . . . 14 . . . 1 3 . . . . . . 8 5 26 . . . Combat Hostiles 56 | . . . . . . . . . . . . . 14 . . . 1 3 . . . . . . 8 5 25 . . . Parts Fried 98 | . . . . . . . . . . . 4 4 17 . . . 3 4 . . . . . . 15 4 47 . . . Impact Corruptions 1 | . . . . . . . . . . . . . . . . . . . . . . . . . . 1 . . . . Robots Melted 22 | . . . . 1 . . . . . . . . 3 . . . . . . . . 1 . . . 3 7 2 1 4 Combat Hostiles 19 | . . . . 1 . . . . . . . . 2 . . . . . . . . . . . . 2 7 2 1 4 Parts Melted 47 | . . . . 5 . . . . . . . 6 8 . . . 1 . . . . . . . . 11 9 2 1 4 Heat Transferred 17653 | 150 618 481 185 4984 . 575 . . . . 50 1283 3600 . . . 856 550 . . . 100 . . 50 851 1678 1100 300 242 Parts Sabotaged . | . . . . . . . . . . . . . . . . . . . . . . . . . . . . . . . Parts Stolen . | . . . . . . . . . . . . . . . . . . . . . . . . . . . . . . . Parts Stripped . | . . . . . . . . . . . . . . . . . . . . . . . . . . . . . . . Power Chain Reactions 15 | . . . . . . . . . . . 2 1 7 . . . 2 1 . . . . . . 1 . 1 . . . Alert | -11 -10 -10 -10 -8 -7 -7 -7 -7 -7 -7 -6 -6 -6 -6 -6 -5 -5 -5 -5 -4 -4 -4 -4 -3 -3 -3 -3 -2 -1 -1 ------- Run | Yrd Mat Min Sub Mat Fac Gar Fac Low Low Zio Pro Fac Gar Fac DSF Fac Gar Fac Gar Fac Upp Upp War Pro Res Qua Frg Res Acc Com Maximum Alert Level 5 | . 1 . . 3 3 5 4 . . . . 2 5 4 3 2 5 5 5 5 . . . . . 1 5 5 4 3 Low Security (%) 24 | 100 49 100 . 24 . . . . . . . 72 . . . . . . . . . . . . 100 49 23 . . . Level 1 12 | . 50 . . 22 . . . . . . . 11 . . . 39 . . . . . . . . . 50 15 . . . Level 2 13 | . . . . 21 81 3 . . . . . 16 21 . . 60 16 . . . . . . . . . 12 . . 15 Level 3 12 | . . . . 31 18 15 55 . . . . . 29 . 100 . 10 . . . . . . . . . 10 . . 84 Level 4 17 | . . . . . . 55 44 . . . . . 8 100 . . 33 86 14 . . . . . . . 17 68 100 . Level 5 18 | . . . . . . 25 . . . . . . 40 . . . 38 13 85 100 . . . . . . 20 . . . High Security . | . . . . . . . . . . . . . . . . . . . . . . . . . . . . 31 . . Max Security . | . . . . . . . . . . . . . . . . . . . . . . . . . . . . . . . Sterilizations 2 | . . . . 1 . . . . . . . . . . 1 . . . . . . . . . . . . . . . Peak Influence 3470 | 5 348 125 . 1056 900 2166 1143 . . . . 595 2174 1141 985 566 2177 1697 3470 1821 . . . . 156 329 2207 1704 1350 887 Initial 1821 | . . 78 . . 459 615 1136 . . . . 10 428 1141 774 516 394 1142 1176 1821 . . . . 40 59 153 1239 1100 787 Average 866 | 1 177 74 . 476 582 1411 1084 . . . . 148 1235 1126 891 421 1400 1373 2386 1743 . . . . 60 173 868 1470 1268 806 Influence Increases 21034 | 15 716 162 . 1735 826 1671 111 319 205 . 127 1104 1866 5 271 585 1833 922 2334 99 387 213 35 255 480 662 2821 625 290 360 Destroy 0b10 Robot/C 11140 | . 360 80 . 1020 340 740 20 200 160 . 100 500 980 . 200 360 780 500 1100 20 200 160 20 200 280 380 1900 200 100 240 Destroy 0b10 Robot/NC 465 | 15 15 . . 60 35 45 40 . . . . 55 20 . . 10 25 35 . 5 . . . . 15 15 60 15 . . Destroy Leader 1598 | . 92 20 . 256 82 40 12 30 20 . 20 154 50 . 30 80 40 100 60 10 30 30 . 40 90 50 182 50 10 20 Allied During Kill 647 | . . . . . . 114 18 89 25 . 7 2 35 . 40 12 6 23 80 31 157 8 . . . . . . . . Successful Hack 321 | . 41 . . 13 57 30 14 . . . . 50 . 5 . 24 12 4 14 . . . . . 2 . 51 . . 4 Select Force Hacks 120 | . 60 . . 60 . . . . . . . . . . . . . . . . . . . . . . . . . . Disable Machine 1440 | . 90 . . 90 195 75 . . . . . 60 60 . . 45 60 45 30 15 . . . . 45 120 360 45 75 30 Anti-Garrison Action 2250 | . . . . . . 450 . . . . . 150 450 . . . 550 . 500 . . . . . . . 150 . . . Destroy Structure 2183 | . 43 17 . 116 102 117 7 . . . . 73 166 . 1 24 345 170 415 18 . . . . 48 82 58 210 105 66 Partial Spotted 135 | . . . . 15 . . . . . . . . . . . . . 15 . . . . . . . . 30 75 . . Lose Combat Pursuer 735 | . 15 45 . 105 15 60 . . . . . 60 105 . . 30 15 30 135 . . 15 15 15 . 15 30 30 . . Influence Decreases 20215 | 15 513 349 16 724 958 384 1260 963 578 . 110 509 304 1073 392 1007 219 1419 544 1863 1318 686 322 209 435 495 890 1125 842 693 Entered New Map 11187 | . . 125 9 . 552 264 1030 378 72 . . 7 184 1033 332 469 169 1035 504 1649 632 148 302 15 21 47 120 965 682 443 Time Decay 7703 | 15 513 214 7 544 356 . 230 565 506 . 110 467 . 40 . 368 . 334 . 214 556 538 10 194 364 448 700 160 160 90 Lost Part 680 | . . 10 . 180 50 100 . . . . . 30 100 . . . 50 10 40 . 10 . 10 . 20 . 70 . . . Lost Ally 345 | . . . . . . 20 . 20 . . . 5 20 . 60 20 . 40 . . 120 . . . 30 . . . . 10 Purge Threat 300 | . . . . . . . . . . . . . . . . 150 . . . . . . . . . . . . . 150 Squads Dispatched 73 | . 6 . . 10 3 . 3 . . . . 10 . 1 2 2 . 4 . . . . . . 5 6 15 2 2 2 Investigation 13 | . 4 . . 3 . . 1 . . . . . . 1 . 1 . . . . . . . . . . . 2 . 1 Extermination 19 | . . . . . 1 . 1 . . . . 4 . . . 1 . 1 . . . . . . 2 4 4 . 1 . Reinforcement 21 | . 2 . . 3 . . 1 . . . . 4 . . 2 . . . . . . . . . 3 2 3 . . 1 Assault 17 | . . . . 1 2 . . . . . . 2 . . . . . 3 . . . . . . . . 8 . 1 . Garrison 3 | . . . . 3 . . . . . . . . . . . . . . . . . . . . . . . . . . Intercept . | . . . . . . . . . . . . . . . . . . . . . . . . . . . . . . . Searches Triggered . | . . . . . . . . . . . . . . . . . . . . . . . . . . . . . . . Unchained Authorized 1 | . . . . . . . . . . . . . . . . . . . . . . . . . . . . . 1 . Construction Impeded 3 | . . . . . . . . . . . . . . . . . . . . . . . . . 1 1 1 . . . Haulers Reinforced 1 | . . . . . . . . . . . . 1 . . . . . . . . . . . . . . . . . . Active Scanning Responses . | . . . . . . . . . . . . . . . . . . . . . . . . . . . . . . . Cargo Convoy Interrupts . | . . . . . . . . . . . . . . . . . . . . . . . . . . . . . . . Stealth | -11 -10 -10 -10 -8 -7 -7 -7 -7 -7 -7 -6 -6 -6 -6 -6 -5 -5 -5 -5 -4 -4 -4 -4 -3 -3 -3 -3 -2 -1 -1 --------- Run | Yrd Mat Min Sub Mat Fac Gar Fac Low Low Zio Pro Fac Gar Fac DSF Fac Gar Fac Gar Fac Upp Upp War Pro Res Qua Frg Res Acc Com Distress Signals 59 | . . . . 15 1 1 1 . . . . 1 . . . 2 . 4 . . . . 1 . . . 1 13 1 18 Communications Jammed 16 | . . . . . . . . . . . . . . . . 7 . . . . . . . . . 9 . . . . Distress Signals 16 | . . . . . . . . . . . . . . . . 7 . . . . . . . . . 9 . . . . Times Spotted 742 | . 26 12 3 74 30 37 3 17 11 . 5 33 54 . 9 23 37 39 57 3 9 4 25 4 20 29 106 52 5 15 Peak Tracking Total 18 | . 4 18 2 7 6 7 2 4 4 . 3 5 11 . 3 4 7 7 8 1 4 2 9 3 5 5 10 18 4 9 Tactical Retreats 39 | . 1 1 . 6 1 3 . 1 2 . . 2 6 . . 2 1 2 3 . . 1 1 1 . 1 2 2 . . Traps | -11 -10 -10 -10 -8 -7 -7 -7 -7 -7 -7 -6 -6 -6 -6 -6 -5 -5 -5 -5 -4 -4 -4 -4 -3 -3 -3 -3 -2 -1 -1 ------- Run | Yrd Mat Min Sub Mat Fac Gar Fac Low Low Zio Pro Fac Gar Fac DSF Fac Gar Fac Gar Fac Upp Upp War Pro Res Qua Frg Res Acc Com Traps Triggered 56 | . 5 . . 5 2 5 1 . . . . . 10 1 2 2 5 1 9 . . . . . . . 7 . . 1 Indirectly 2 | . . . . 1 . . . . . . . . 1 . . . . . . . . . . . . . . . . . Trap Hack Attempts . | . . . . . . . . . . . . . . . . . . . . . . . . . . . . . . . Triggered . | . . . . . . . . . . . . . . . . . . . . . . . . . . . . . . . Disarmed . | . . . . . . . . . . . . . . . . . . . . . . . . . . . . . . . Reprogrammed . | . . . . . . . . . . . . . . . . . . . . . . . . . . . . . . . Reused . | . . . . . . . . . . . . . . . . . . . . . . . . . . . . . . . Traps Extracted . | . . . . . . . . . . . . . . . . . . . . . . . . . . . . . . . Installed . | . . . . . . . . . . . . . . . . . . . . . . . . . . . . . . . Triggered . | . . . . . . . . . . . . . . . . . . . . . . . . . . . . . . . Machines | -11 -10 -10 -10 -8 -7 -7 -7 -7 -7 -7 -6 -6 -6 -6 -6 -5 -5 -5 -5 -4 -4 -4 -4 -3 -3 -3 -3 -2 -1 -1 ---------- Run | Yrd Mat Min Sub Mat Fac Gar Fac Low Low Zio Pro Fac Gar Fac DSF Fac Gar Fac Gar Fac Upp Upp War Pro Res Qua Frg Res Acc Com Machines Disabled 147 | . 6 . . 6 13 11 . . 1 3 . 5 9 . . 3 14 3 13 1 . . 1 . 3 8 37 3 5 2 Max in Single Turn 4 | . 2 . . 2 4 2 . . 1 1 . 4 2 . . 1 2 2 2 1 . . 1 . 2 1 2 2 2 1 Garrison Access 4 | . . . . 1 . . . . . . . 1 . . . . . . . . . . . . . . 1 1 . . Garrison Relay 18 | . . . . . . 4 . . . . . . 4 . . . 5 . 5 . . . . . . . . . . . Phase Generator 3 | . . . . . . 1 . . . . . . . . . . 1 . 1 . . . . . . . . . . . Machines Repaired . | . . . . . . . . . . . . . . . . . . . . . . . . . . . . . . . Machines Dismantled 4 | . . . . . . . . . . 3 . . . . . . . . 1 . . . . . . . . . . . Machines Sabotaged . | . . . . . . . . . . . . . . . . . . . . . . . . . . . . . . . Overloaded Fab Kills . | . . . . . . . . . . . . . . . . . . . . . . . . . . . . . . . Hacking | -11 -10 -10 -10 -8 -7 -7 -7 -7 -7 -7 -6 -6 -6 -6 -6 -5 -5 -5 -5 -4 -4 -4 -4 -3 -3 -3 -3 -2 -1 -1 --------- Run | Yrd Mat Min Sub Mat Fac Gar Fac Low Low Zio Pro Fac Gar Fac DSF Fac Gar Fac Gar Fac Upp Upp War Pro Res Qua Frg Res Acc Com Machines Accessed 80 | . 8 . . 15 7 1 2 2 1 . . 15 1 1 . 4 2 2 2 . 1 . 4 . 1 2 3 4 . 2 Terminals 42 | . 6 . . 10 3 1 2 . . . . 8 1 1 . . 2 . 2 . . . . . . . 1 3 . 2 Fabricators 4 | . . . . . 1 . . . . . . 1 . . . 2 . . . . . . . . . . . . . . Repair Stations 3 | . . . . . 1 . . . . . . 2 . . . . . . . . . . . . . . . . . . Recycling Units 6 | . 2 . . 2 . . . . . . . 1 . . . . . 1 . . . . . . . . . . . . Scanalyzers 9 | . . . . 2 1 . . . . . . 1 . . . 1 . . . . . . . . 1 2 1 . . . Garrison Access 8 | . . . . 1 1 . . . . . . 2 . . . 1 . 1 . . . . . . . . 1 1 . . Total Hacks 173 | . 19 . . 42 15 2 3 7 1 . . 25 2 1 . 9 3 5 4 . 1 . 9 . 2 7 5 8 . 3 Successful 98 | . 12 . . 22 10 2 1 7 1 . . 11 . 1 . 3 1 3 1 . 1 . 9 . 2 5 3 . . 3 Failed 72 | . 7 . . 19 4 . 2 . . . . 14 2 . . 6 2 2 3 . . . . . . 1 2 8 . . Catastrophic 16 | . 1 . . 4 1 . 2 . . . . 1 1 . . . . . . . . . . . . 1 1 4 . . Database Lockouts 3 | . . . . 1 1 . . . . . . . . . . . . . . . . . . . . 1 . . . . Manual 74 | . 17 . . 26 4 1 2 . . . . 13 1 . . 2 2 . . . . . . . . . 1 3 . 2 Terminals 91 | . 17 . . 26 7 2 3 . . . . 14 2 1 . 1 3 1 4 . . . . . . . 1 6 . 3 Fabricators 5 | . . . . . 1 . . . . . . 1 . . . 3 . . . . . . . . . . . . . . Repair Stations 8 | . . . . . 2 . . . . . . 6 . . . . . . . . . . . . . . . . . . Recycling Units 8 | . 2 . . 3 . . . . . . . 1 . . . . . 2 . . . . . . . . . . . . Scanalyzers 29 | . . . . 12 4 . . . . . . 1 . . . 1 . . . . . . . . 2 7 2 . . . Garrison Access 14 | . . . . 1 1 . . . . . . 2 . . . 4 . 2 . . . . . . . . 2 2 . . Terminal Hacks 31 | . 1 . . 1 2 2 1 7 1 . . . . 1 . . 1 . 1 . 1 . 9 . . . 1 . . 2 Record 14 | . . . . . . . . 6 . . . . . . . . . . . . . . 8 . . . . . . . Robot Analysis 2 | . 1 . . 1 . . . . . . . . . . . . . . . . . . . . . . . . . . Open Door 4 | . . . . . . . . 1 1 . . . . . . . . . . . 1 . 1 . . . . . . . Open DSF 1 | . . . . . . . . . . . . . . 1 . . . . . . . . . . . . . . . . Branch Access Points 2 | . . . . . 1 . 1 . . . . . . . . . . . . . . . . . . . . . . . Emergency Access Points 2 | . . . . . . 1 . . . . . . . . . . . . 1 . . . . . . . . . . . Unreport Threat 1 | . . . . . . . . . . . . . . . . . . . . . . . . . . . . . . 1 Zone Layout 1 | . . . . . 1 . . . . . . . . . . . . . . . . . . . . . . . . . Garrison Registry 2 | . . . . . . 1 . . . . . . . . . . 1 . . . . . . . . . . . . . Proto ID Catalog 1 | . . . . . . . . . . . . . . . . . . . . . . . . . . . 1 . . . Disengage Seal 1 | . . . . . . . . . . . . . . . . . . . . . . . . . . . . . . 1 Fabricator Hacks 3 | . . . . . 1 . . . . . . 1 . . . 1 . . . . . . . . . . . . . . Network Status 1 | . . . . . . . . . . . . . . . . 1 . . . . . . . . . . . . . . Load Schematic 1 | . . . . . 1 . . . . . . . . . . . . . . . . . . . . . . . . . Build 1 | . . . . . . . . . . . . 1 . . . . . . . . . . . . . . . . . . Repair Station Hacks 5 | . . . . . 2 . . . . . . 3 . . . . . . . . . . . . . . . . . . Scan Component 4 | . . . . . 1 . . . . . . 3 . . . . . . . . . . . . . . . . . . Repair 1 | . . . . . 1 . . . . . . . . . . . . . . . . . . . . . . . . . Recycling Unit Hacks 2 | . . . . . . . . . . . . . . . . . . 2 . . . . . . . . . . . . Retrieve Matter 1 | . . . . . . . . . . . . . . . . . . 1 . . . . . . . . . . . . Retrieve Components 1 | . . . . . . . . . . . . . . . . . . 1 . . . . . . . . . . . . Scanalyzer 19 | . . . . 9 2 . . . . . . . . . . . . . . . . . . . 2 5 1 . . . Insert Component 8 | . . . . 4 . . . . . . . . . . . . . . . . . . . . . 4 . . . . Analyze 3 | . . . . 3 . . . . . . . . . . . . . . . . . . . . . . . . . . Retrieve Study 8 | . . . . 2 2 . . . . . . . . . . . . . . . . . . . 2 1 1 . . . Garrison Access Hacks 6 | . . . . 1 1 . . . . . . 2 . . . 1 . 1 . . . . . . . . . . . . Unlock Access 5 | . . . . . 1 . . . . . . 2 . . . 1 . 1 . . . . . . . . . . . . Seal Access 1 | . . . . 1 . . . . . . . . . . . . . . . . . . . . . . . . . . Unauthorized Hacks 32 | . 11 . . 11 2 . . . . . . 5 . . . 1 . . . . . . . . . . 1 . . 1 Terminals 26 | . 9 . . 9 2 . . . . . . 5 . . . . . . . . . . . . . . . . . 1 Assimilate 2 | . 1 . . . . . . . . . . . . . . . . . . . . . . . . . . . . 1 Botnet 7 | . 3 . . 3 1 . . . . . . . . . . . . . . . . . . . . . . . . . Skim 17 | . 5 . . 6 1 . . . . . . 5 . . . . . . . . . . . . . . . . . . Fabricators 1 | . . . . . . . . . . . . . . . . 1 . . . . . . . . . . . . . . Report 1 | . . . . . . . . . . . . . . . . 1 . . . . . . . . . . . . . . Repair Stations . | . . . . . . . . . . . . . . . . . . . . . . . . . . . . . . . Recycling Units 4 | . 2 . . 2 . . . . . . . . . . . . . . . . . . . . . . . . . . Tunnel 4 | . 2 . . 2 . . . . . . . . . . . . . . . . . . . . . . . . . . Scanalyzers 1 | . . . . . . . . . . . . . . . . . . . . . . . . . . . 1 . . . Researchers 1 | . . . . . . . . . . . . . . . . . . . . . . . . . . . 1 . . . Garrison Access . | . . . . . . . . . . . . . . . . . . . . . . . . . . . . . . . Data Cores Recovered 4 | . . . . . . . . . . . . 2 . . . 1 . 1 . . . . . . . . . . . . Used 1 | . . . . . . . . . . . . 1 . . . . . . . . . . . . . . . . . . Hacking Detections 50 | . 6 . . 11 5 1 1 . . . . 10 1 . . 3 . 1 1 . . . . . 1 2 2 4 . 1 Full Trace Events 6 | . . . . . . . 1 . . . . . 1 . . 1 1 . . . . . . . . . . 2 . . Feedback Events 1 | . . . . . . . 1 . . . . . . . . . . . . . . . . . . . . . . . Corruption 1 | . . . . . . . 1 . . . . . . . . . . . . . . . . . . . . . . . Feedback Blocked . | . . . . . . . . . . . . . . . . . . . . . . . . . . . . . . . Robot Schematics Acquired 5 | . . . . . . . . . . 4 . . . . . . . . . . . . . . . 1 . . . . Robots Built . | . . . . . . . . . . . . . . . . . . . . . . . . . . . . . . . Authchips . | . . . . . . . . . . . . . . . . . . . . . . . . . . . . . . . Time . | . . . . . . . . . . . . . . . . . . . . . . . . . . . . . . . Total Robot Build Rating . | . . . . . . . . . . . . . . . . . . . . . . . . . . . . . . . Part Schematics Acquired 33 | . . . . 3 . . . . . 14 . . . . . . . . . . . . . . . 3 13 . . . Parts Built 2 | . . . . . . . . . . . . 2 . . . . . . . . . . . . . . . . . . Authchips . | . . . . . . . . . . . . . . . . . . . . . . . . . . . . . . . Time 106 | . . . . . . . . . . . . 106 . . . . . . . . . . . . . . . . . . Total Part Build Rating 12 | . . . . . . . . . . . . 12 . . . . . . . . . . . . . . . . . . Part Studies Acquired 8 | . . . . 2 2 . . . . . . . . . . . . . . . . . . . 2 1 1 . . . Parts Repaired 1 | . . . . . 1 . . . . . . . . . . . . . . . . . . . . . . . . . Time 38 | . . . . . 38 . . . . . . . . . . . . . . . . . . . . . . . . . Parts Recycled . | . . . . . . . . . . . . . . . . . . . . . . . . . . . . . . . Recycled Matter . | . . . . . . . . . . . . . . . . . . . . . . . . . . . . . . . Retrieved Matter . | . . . . . . . . . . . . . . . . . . . . . . . . . . . . . . . Retrieved Components 2 | . . . . . . . . . . . . . . . . . . 2 . . . . . . . . . . . . Parts Scanalyzed 3 | . . . . 3 . . . . . . . . . . . . . . . . . . . . . . . . . . Part Schematics Acquired 3 | . . . . 3 . . . . . . . . . . . . . . . . . . . . . . . . . . Parts Damaged . | . . . . . . . . . . . . . . . . . . . . . . . . . . . . . . . Bothacking | -11 -10 -10 -10 -8 -7 -7 -7 -7 -7 -7 -6 -6 -6 -6 -6 -5 -5 -5 -5 -4 -4 -4 -4 -3 -3 -3 -3 -2 -1 -1 ------------ Run | Yrd Mat Min Sub Mat Fac Gar Fac Low Low Zio Pro Fac Gar Fac DSF Fac Gar Fac Gar Fac Upp Upp War Pro Res Qua Frg Res Acc Com Used RIF Installer . | . . . . . . . . . . . . . . . . . . . . . . . . . . . . . . . Robots Hacked 1 | . . . . . . . . . . . . . . . . . . . 1 . . . . . . . . . . . Non-combat . | . . . . . . . . . . . . . . . . . . . . . . . . . . . . . . . Combat 1 | . . . . . . . . . . . . . . . . . . . 1 . . . . . . . . . . . Robot Hacks Applied 1 | . . . . . . . . . . . . . . . . . . . 1 . . . . . . . . . . . parse_system 1 | . . . . . . . . . . . . . . . . . . . 1 . . . . . . . . . . . Relay Couplers Released 80 | . . . . . . 18 . . . . . 3 15 . . . 21 . 18 . . . . . . . 2 3 . . Machine Destruction 80 | . . . . . . 18 . . . . . 3 15 . . . 21 . 18 . . . . . . . 2 3 . . Fabnet Peak Effective % . | . . . . . . . . . . . . . . . . . . . . . . . . . . . . . . . Robots Rewired 19 | . . . . . . . . 4 . . . . 5 . . . 2 . 8 . . . . . . . . . . . Allies Hacked . | . . . . . . . . . . . . . . . . . . . . . . . . . . . . . . . Hacks Repelled . | . . . . . . . . . . . . . . . . . . . . . . . . . . . . . . . Allies | -11 -10 -10 -10 -8 -7 -7 -7 -7 -7 -7 -6 -6 -6 -6 -6 -5 -5 -5 -5 -4 -4 -4 -4 -3 -3 -3 -3 -2 -1 -1 -------- Run | Yrd Mat Min Sub Mat Fac Gar Fac Low Low Zio Pro Fac Gar Fac DSF Fac Gar Fac Gar Fac Upp Upp War Pro Res Qua Frg Res Acc Com Total Allies 25 | . . . . . . 4 . 4 . . . . 5 . . . 2 . 9 . . . . . . . . . . 1 Largest Group 9 | . . . . . . 4 3 7 3 1 1 1 4 4 4 1 2 2 9 9 8 2 . . . . . . . 1 Highest-Rated Group 269 | . . . . . . 227 185 262 65 17 17 17 162 162 162 51 232 232 269 269 239 60 . . . . . . . 26 Highest-Rated Ally 116 | . . . . . . 95 95 95 28 17 17 17 116 51 51 51 116 116 30 30 30 30 . . . . . . . 26 Initial Warlord ECA Mod 46 | . . . . . . . 9 9 9 9 8 8 8 16 16 25 25 35 35 46 46 46 46 45 45 45 45 44 43 43 Total Orders 30 | . . . . . . . . . . . . 3 1 . . 4 4 1 1 1 . . 2 . 5 6 2 . . . STAY 1 | . . . . . . . . . . . . . . . . . 1 . . . . . . . . . . . . . FOLLOW 2 | . . . . . . . . . . . . . . . . . 2 . . . . . . . . . . . . . EXPLORE 5 | . . . . . . . . . . . . . . . . . . . . . . . 1 . 4 . . . . . RETURN 22 | . . . . . . . . . . . . 3 1 . . 4 1 1 1 1 . . 1 . 1 6 2 . . . Ally Attacks 189 | . . . . . . 68 4 37 2 . . . 18 . 16 5 3 9 . . 27 . . . . . . . . . Total Damage 5989 | . . . . . . 1574 193 1048 21 . . . 946 . 511 62 155 434 . . 1045 . . . . . . . . . Kills 38 | . . . . . . 13 3 6 1 . . . 5 . 2 1 1 1 . . 5 . . . . . . . . . Allies Corrupted 1 | . . . . . . 1 . . . . . . . . . . . . . . . . . . . . . . . . Allies Melted 1 | . . . . . . . . . . . . . . . . . . . . . 1 . . . . . . . . . Intel | -11 -10 -10 -10 -8 -7 -7 -7 -7 -7 -7 -6 -6 -6 -6 -6 -5 -5 -5 -5 -4 -4 -4 -4 -3 -3 -3 -3 -2 -1 -1 ------- Run | Yrd Mat Min Sub Mat Fac Gar Fac Low Low Zio Pro Fac Gar Fac DSF Fac Gar Fac Gar Fac Upp Upp War Pro Res Qua Frg Res Acc Com Active Infowar (turns) 20310 | 22 263 . 994 108 561 1005 1 1482 1412 729 1573 300 . 27 88 573 . 336 17 369 1624 1525 898 1376 1008 1109 1982 482 330 116 Optics 6163 | . . . . . . . . . . . . . . . . . . . . 368 1624 1525 898 . . . 820 482 330 116 Sensors 6524 | . . . . . 468 16 . . . . . . . . . . . . . . 1383 1405 60 1375 847 443 527 . . . Terrain 2273 | 22 263 . . . 93 682 . . . . . . . . . . . . . . . . . 1 628 478 . 106 . . Structural 5283 | . . . . . . . 1 1482 1412 727 1573 88 . . . . . . . . . . . . . . . . . . Seismic 1102 | . . . 994 108 . . . . . . . . . . . . . . . . . . . . . . . . . . T.N.C. 1 | . . . . . . . . . . . . . . . . . . . . . . . . . 1 . . . . . Machine Analysis 353 | . . . . . . . . . . . . . . . . . . 336 17 . . . . . . . . . . . Cloaking 1687 | . . . . . . . . . . . . . . . . . . . . . . . 233 . . 422 1032 . . . Jamming 2547 | . . . . . . 307 . . . . . 246 . 27 88 573 . 6 . 369 25 . . . . 544 362 . . . ECM 2 | . . . . . . . . . . 2 . . . . . . . . . . . . . . . . . . . . Robot Analysis Total 2 | . 1 . . 1 . . . . . . . . . . . . . . . . . . . . . . . . . . Derelict Logs Recovered 10 | . . . 1 . . . . 2 2 2 1 . . . . . . . . . 1 1 . . . . . . . . Drone Launches 26 | . . . . . . . . . . . . 3 1 . . 4 1 1 1 1 . . 1 . 5 6 2 . . . Drone Recoveries 22 | . . . . . . . . . . . . 3 1 . . 4 1 1 1 1 . . 1 . 1 6 2 . . . Exploration | -11 -10 -10 -10 -8 -7 -7 -7 -7 -7 -7 -6 -6 -6 -6 -6 -5 -5 -5 -5 -4 -4 -4 -4 -3 -3 -3 -3 -2 -1 -1 ------------- Run | Yrd Mat Min Sub Mat Fac Gar Fac Low Low Zio Pro Fac Gar Fac DSF Fac Gar Fac Gar Fac Upp Upp War Pro Res Qua Frg Res Acc Com Turns Passed 37659 | 123 1617 453 1038 2131 810 1871 491 1685 1495 2223 1619 1764 2012 81 249 857 1952 743 1457 453 1624 1525 979 1624 1291 1462 2987 482 330 231 Spaces Moved 20906 | 51 682 276 620 1114 555 617 277 941 878 1303 966 799 870 44 140 478 958 394 706 241 1005 888 582 680 373 728 2179 1173 151 237 Core 1 | 1 . . . . . . . . . . . . . . . . . . . . . . . . . . . . . . Treads 9595 | 50 682 116 620 289 . 312 277 941 878 1303 966 799 340 . . . . . . . . . . 300 358 728 636 . . . Legs 305 | . . . . 2 . 178 . . . . . . . . . . . . . . . . . . . . 125 . . . Wheels 8026 | . . 160 . 823 555 127 . . . . . . 530 44 140 478 958 394 706 241 1005 888 582 380 15 . . . . . Hover 2979 | . . . . . . . . . . . . . . . . . . . . . . . . . . . 1418 1173 151 237 Flight . | . . . . . . . . . . . . . . . . . . . . . . . . . . . . . . . Fastest Speed 24 | 50 160 105 160 95 101 116 160 160 160 160 160 160 145 145 145 145 145 145 145 145 145 145 145 205 152 148 30 27 28 24 Average Speed 139 | 157 160 129 160 128 112 194 160 160 160 160 160 162 162 145 145 145 145 145 145 145 152 159 147 224 223 153 75 27 28 34 Slowest Speed 400 | 160 160 240 160 400 125 330 160 160 160 160 160 246 247 145 145 145 145 145 145 160 160 160 205 250 250 229 250 28 28 89 Overloaded Moves 50 | . . . . . . . . . . . . . . . . . . . . . . . . . . . . . . 50 Propulsion Burnouts . | . . . . . . . . . . . . . . . . . . . . . . . . . . . . . . . Robots Hopped . | . . . . . . . . . . . . . . . . . . . . . . . . . . . . . . . Potential Cave-ins 19 | . . . . . . . . . . . . . . . . . . . . . . . . . . 2 17 . . . Cave-ins Triggered . | . . . . . . . . . . . . . . . . . . . . . . . . . . . . . . . Teleports 3 | . . . . . . . . . . . . . . . . . . . . . . . . . . 2 1 . . . Exploration Rate (%) 56 | 5 98 46 31 94 23 86 12 98 94 87 98 26 83 3 90 16 84 21 95 8 94 84 92 77 18 82 36 54 7 15 Regions Visited 30 Branch Regions 13 Pre-discovered Areas 8 | . 2 . . 2 . . . 1 1 . . 1 . . . . . . . . . . 1 . . . . . . . Known Exits Taken 19 | . 1 1 1 1 1 . 1 . . . . 1 . 1 . 1 . 1 . 1 1 1 1 1 1 1 1 . 1 . Unknown Exits Taken 6 | 1 . . . . . . . 1 1 1 1 . . . . . . . . . . . . . . . . 1 . . Scrap Searched 16 | . . . . . . . . 1 4 2 2 . . . . . . . . . 2 3 . 2 . . . . . . Spaces Dug 242 | . . . 7 15 5 5 . 1 . . . 36 50 . . 2 14 3 4 2 1 6 . . 8 24 26 18 15 . Terrain Destroyed 2054 | . 50 23 36 145 115 113 4 62 42 . 67 80 177 . 1 9 186 84 274 8 8 140 36 127 24 51 52 75 35 30 Melee . | . . . . . . . . . . . . . . . . . . . . . . . . . . . . . . . Projectile 448 | . 1 . . 2 12 17 4 14 14 . 1 43 8 . 1 9 44 16 15 8 8 17 . 1 12 51 52 48 35 15 AOE 1606 | . 49 23 36 143 103 96 . 48 28 . 66 37 169 . . . 142 68 259 . . 123 36 126 12 . . 27 . 15 Terrain Rammed . | . . . . . . . . . . . . . . . . . . . . . . . . . . . . . . . Walls Destroyed . | . . . . . . . . . . . . . . . . . . . . . . . . . . . . . . . Machines Disabled . | . . . . . . . . . . . . . . . . . . . . . . . . . . . . . . . Actions | -11 -10 -10 -10 -8 -7 -7 -7 -7 -7 -7 -6 -6 -6 -6 -6 -5 -5 -5 -5 -4 -4 -4 -4 -3 -3 -3 -3 -2 -1 -1 --------- Run | Yrd Mat Min Sub Mat Fac Gar Fac Low Low Zio Pro Fac Gar Fac DSF Fac Gar Fac Gar Fac Upp Upp War Pro Res Qua Frg Res Acc Com Total 27355 | 73 1139 326 652 1516 677 1034 311 1085 941 1392 1013 1139 1324 61 183 601 1392 522 1058 334 1076 970 709 752 756 971 3279 1299 422 348 Wait 1655 | . 368 8 5 46 11 23 5 20 8 7 . 39 59 17 . 9 56 7 40 25 23 16 10 16 188 34 308 51 246 10 Move 20878 | 50 681 275 619 1113 555 614 276 940 877 1302 965 799 869 43 139 478 957 394 705 240 1004 887 581 679 372 727 2178 1172 150 237 Hop . | . . . . . . . . . . . . . . . . . . . . . . . . . . . . . . . Pick Up 586 | 7 16 5 4 55 19 46 6 6 7 16 4 35 31 . 11 12 37 8 22 17 4 8 32 8 17 24 109 8 . 12 Fast Attach 191 | 6 3 2 1 17 5 16 1 3 1 8 . 12 3 . 1 6 14 5 6 3 3 3 12 3 14 6 26 7 . 4 Attach 298 | 1 . 2 . 24 15 13 1 2 4 3 5 26 30 . . 8 27 10 19 5 2 6 7 5 9 6 54 3 2 9 Detach 73 | . . . . . 3 5 1 2 2 1 . 5 14 . . 2 10 6 8 1 . . . . 2 . 9 . . 2 Swap 580 | . 19 7 10 45 8 25 2 15 10 4 12 41 34 1 5 12 23 23 14 10 12 7 18 6 45 53 103 6 . 10 Drop 653 | . 10 5 6 53 15 51 6 9 8 23 4 45 20 . 16 18 43 12 20 18 6 9 46 10 25 27 118 13 . 17 Fire 2047 | 9 32 21 7 154 46 206 11 33 24 1 23 130 184 . 11 46 155 57 159 14 22 34 2 25 80 86 365 39 24 47 Melee 1 | . . . . . . . . . . . . . . . . . . . . . . . 1 . . . . . . . Ram 1 | . . . . 1 . . . . . . . . . . . . . . . . . . . . . . . . . . Kick . | . . . . . . . . . . . . . . . . . . . . . . . . . . . . . . . Crush 30 | . 10 1 . 8 . . 1 . . . . 2 . . . . . . . . . . . . 3 4 1 . . . Escape Stasis 178 | . . . . . . 34 . . . . . . 35 . . 8 37 . 56 . . . . . . . 8 . . . Rewire 129 | . . . . . . . . 55 . . . . 43 . . . 31 . . . . . . . . . . . . . Trap . | . . . . . . . . . . . . . . . . . . . . . . . . . . . . . . . Miscellaneous 55 | . . . . . . 1 1 . . 27 . 5 2 . . 2 2 . 9 1 . . . . 1 4 . . . . Route ------- -11/Scrapyard -10/Materials (discovered 5 exits: *Mat x3 / *Min / Sub) -10/Mines (discovered 3 exits: Mat x2 / *Sub) -10/Subcaves (discovered 3 exits: *Mat x2 / Rec) -8/Materials (discovered 3 exits: *Fac x3) -7/Factory (discovered 3 exits: Low x2 / Gar) -7/Garrison (discovered 3 exits: *Fac x3) -7/Factory (discovered 2 exits: *Low x2) -7/Lower Caves -7/Lower Caves (discovered 2 exits: *Fac / [*Zio]) -7/Zion (discovered 2 exits: [*Dee] / [*Pro]) -6/Proximity Caves -6/Factory (discovered 4 exits: *Fac x2 / Low / Gar) -6/Garrison (discovered 3 exits: *Fac x3) -6/Factory -6/DSF -5/Factory (discovered 8 exits: Fac x4 / *Upp x2 / *Ext / Gar) -5/Garrison (discovered 3 exits: *Fac x3) -5/Factory (discovered 2 exits: *Fac / Gar) -5/Garrison (discovered 3 exits: *Fac x3) -4/Factory -4/Upper Caves -4/Upper Caves (discovered 2 exits: *Res / *War) -4/Warlord -3/Proximity Caves -3/Research -3/Quarantine (discovered 3 exits: *Res / [*Sec] / *Frg) -3/Protoforge -2/Research (discovered 2 exits: *Acc x2) -1/Access (discovered 2 exits: Sur / *Com) -1/Command Free Derelict Territories History --------- Turn | Location | Event 47 | -11/Scrapyard | Discovered new exit (range 15) 124 | -11/Scrapyard | Entered Materials 278 | -10/Materials | Discovered new exit (range 12) 302 | -10/Materials | Build established: Mutant 416 | -10/Materials | Discovered new exit (range 11) 515 | -10/Materials | Discovered new exit (range 10) 820 | -10/Materials | Discovered new exit (range 15) 1305 | -10/Materials | Loaded intel: 6 trap records 1364 | -10/Materials | Learned location of 2 exits from Subcaves 1484 | -10/Materials | Identified exit to Materials 1484 | -10/Materials | Identified exit to Mines 1484 | -10/Materials | Identified exit to Subcaves 1503 | -10/Materials | Learned 4 Recycling zone layouts 1534 | -10/Materials | Learned 2 Storage zone layouts 1577 | -10/Materials | Learned location of 2 exits from Mines 1741 | -10/Materials | Entered Mines 1780 | -10/Mines | Met a Derelict bent on vengeance 1818 | -10/Mines | Discovered exit to Subcaves (range 7) 1971 | -10/Mines | Joined a pair of Derelicts in attacking an 0b10 outpost 2116 | -10/Mines | Assembled infested the area 2194 | -10/Mines | Entered Subcaves 2195 | -10/Subcaves | Identified exit to Materials 2195 | -10/Subcaves | Identified exit to Recycling 2556 | -10/Subcaves | Learned 2 Materials zone layouts 2975 | -10/Subcaves | Discovered exit to Materials (range 10) 2988 | -10/Subcaves | Core integrity fell below 50% 3232 | -10/Subcaves | Entered Materials 3232 | -8/Materials | Evolved 4 slots: Propulsion x3, Utility x1 3233 | -8/Materials | Identified exit to Factory 3558 | -8/Materials | Build established: Scavenger-Mutant 3558 | -8/Materials | Garrison activated, responded to threat 3653 | -8/Materials | Lost 3 parts (3n) 4568 | -8/Materials | Learned location of 1 exit from Recycling 4647 | -8/Materials | Learned location of 1 exit from Extension 4690 | -8/Materials | Central database locked down 4698 | -8/Materials | Discovered exit to Factory (range 8) 4738 | -8/Materials | Core integrity fell below 50% 4818 | -8/Materials | Learned 2 Storage zone layouts 4832 | -8/Materials | First assault squad dispatched 4847 | -8/Materials | Build established: Mutant 4856 | -8/Materials | Learned Storage emergency access door positions 4965 | -8/Materials | Learned location of 1 exit from Extension 5116 | -8/Materials | Sterilization system engaged 5116 | -8/Materials | Non-combat units ordered to evacuate 5130 | -8/Materials | Lost 3 parts (2n1w) 5216 | -8/Materials | Combat units ordered to evacuate 5363 | -8/Materials | Entered Factory 5363 | -7/Factory | Evolved 2 slots: Propulsion x1, Utility x1 5544 | -7/Factory | Repaired Hrd. Medium Armor Plating? 5575 | -7/Factory | Central database locked down 5651 | -7/Factory | Identified exit to Lower Caves 5763 | -7/Factory | First assault squad dispatched 5900 | -7/Factory | Build established: Scavenger-Mutant 5908 | -7/Factory | Assembled infested ambush trap array 6173 | -7/Factory | Identified exit to Garrison 6173 | -7/Factory | Entered Garrison 6205 | -7/Garrison | Triggered checkpoint 6266 | -7/Garrison | Heavy support dispatched to Factory 6277 | -7/Garrison | Lost 3 parts (3n) 6290 | -7/Garrison | Garrison Relay disabled 6343 | -7/Garrison | Discovered new exit (range 43) 6343 | -7/Garrison | Discovered new exit (range 54) 6343 | -7/Garrison | Discovered new exit (range 36) 6368 | -7/Garrison | Triggered checkpoint 6384 | -7/Garrison | Heavy support dispatched to Factory 6408 | -7/Garrison | Triggered checkpoint 6439 | -7/Garrison | Destroyed 7 combat bots 6508 | -7/Garrison | Rescued a captive Derelict 6509 | -7/Garrison | Rescued a captive Derelict 6537 | -7/Garrison | Lost 5 parts (3n2u) 6548 | -7/Garrison | Heavy support dispatched to Factory 6591 | -7/Garrison | Garrison Relay disabled 6843 | -7/Garrison | Triggered checkpoint 7000 | -7/Garrison | Found embedded Infiltrators 7436 | -7/Garrison | Heavy support dispatched to Factory 7487 | -7/Garrison | Heavy support dispatched to Factory 7493 | -7/Garrison | Garrison Relay disabled 7577 | -7/Garrison | Core integrity fell below 50% 7675 | -7/Garrison | Phase Generator disabled 7737 | -7/Garrison | Triggered checkpoint 7763 | -7/Garrison | Garrison Relay disabled 7774 | -7/Garrison | Build established: Hauler-Mutant 7783 | -7/Garrison | Triggered checkpoint 7900 | -7/Garrison | Attempted to access garrison exit controls, blocked by remote lockdown 8044 | -7/Garrison | Entered Factory 8044 | -7/Factory | Accompanied by 3 allies 8535 | -7/Factory | Entered Lower Caves 8535 | -7/Lower Caves | Accompanied by 3 allies 8541 | -7/Lower Caves | Met a Warlord Commander 8542 | -7/Lower Caves | Learned location of Warlord (-4) 8543 | -7/Lower Caves | Warlord Commander delivered Encrypted Comm Array 8547 | -7/Lower Caves | Found Encrypted Comm Array 8653 | -7/Lower Caves | Entered an active Warlord outpost 8682 | -7/Lower Caves | Learned Armory trap positions 8682 | -7/Lower Caves | Learned Research garrison access intel 8801 | -7/Lower Caves | Attacked by a delusional Derelict stockpiling Unaware 8839 | -7/Lower Caves | Build established: Scavenger-Mutant 8948 | -7/Lower Caves | Learned Factory stockpile data 9182 | -7/Lower Caves | Learned Factory interactive machine intel 9362 | -7/Lower Caves | Attracted the attention of an 0b10 checkpoint 9447 | -7/Lower Caves | Ambushed by wild Derelicts 9740 | -7/Lower Caves | Build established: Hauler-Mutant 9877 | -7/Lower Caves | Discovered new exit (range 12) 10220 | -7/Lower Caves | Entered another Lower Caves area 10220 | -7/Lower Caves | Accompanied by 3 allies 10269 | -7/Lower Caves | Discovered new exit (range 8) 11198 | -7/Lower Caves | Encountered a Warlord checkpoint 11228 | -7/Lower Caves | Attracted the attention of an 0b10 checkpoint 11260 | -7/Lower Caves | Learned location of Zion (-7) 11290 | -7/Lower Caves | Learned 8 Factory zone layouts 11302 | -7/Lower Caves | Discovered new exit (range 15) 11715 | -7/Lower Caves | Entered Zion 11715 | -7/Zion | Accompanied by 1 ally 11798 | -7/Zion | System corruption cleaned by Quarantine Array 11949 | -7/Zion | Discovered new exit (range 14) 12108 | -7/Zion | Found Prototype Hackware 12110 | -7/Zion | Found Prototype Processor 12121 | -7/Zion | Identified Exp. System Shield 12122 | -7/Zion | Found Prototype Processor 12141 | -7/Zion | Identified Exp. Melee Analysis Suite (x2) 12322 | -7/Zion | Learned location of 1 exit from Lower Caves 12636 | -7/Zion | Given the Hacking Drone Bay 12638 | -7/Zion | Found Prototype Device 12674 | -7/Zion | Identified Hacking Drone Bay 12748 | -7/Zion | Discovered new exit (range 5) 12751 | -7/Zion | Saw the warning signs outside the Deep Caves entrance 12941 | -7/Zion | Met Imprinter 13938 | -7/Zion | Entered Proximity Caves 13938 | -6/Proximity Caves | Accompanied by 1 ally 15112 | -6/Proximity Caves | Attracted the attention of an 0b10 checkpoint 15516 | -6/Proximity Caves | Discovered new exit (range 10) 15557 | -6/Proximity Caves | Entered Factory 15557 | -6/Factory | Accompanied by 1 ally 15557 | -6/Factory | Evolved 2 slots: Utility x2 15560 | -6/Factory | Loaded intel: 52 interactive machine locations 15805 | -6/Factory | Spotted B-75 Beast 15846 | -6/Factory | Destroyed B-75 Beast 16025 | -6/Factory | Fabricated Adv. Field Recycling Unit? 16200 | -6/Factory | Found Launcher Loader 16243 | -6/Factory | Discovered new exit (range 6) 16481 | -6/Factory | Found Hvy. Insulated Plating 16698 | -6/Factory | Found Prototype Processor 16698 | -6/Factory | Identified Exp. Targeting Computer 17028 | -6/Factory | Identified exit to Lower Caves 17028 | -6/Factory | Identified exit to Factory 17028 | -6/Factory | Identified exit to Garrison 17084 | -6/Factory | Learned Extension garrison access intel 17132 | -6/Factory | Learned 4 Lower Caves zone layouts 17192 | -6/Factory | Learned 2 Proximity Caves zone layouts 17207 | -6/Factory | Learned location of 1 exit from Cetus 17220 | -6/Factory | Learned location of 1 exit from Lower Caves 17245 | -6/Factory | Loaded intel: 256 machine locations 17321 | -6/Factory | Identified exit to Garrison 17321 | -6/Factory | Entered Garrison 17321 | -6/Garrison | Spotted B-75 Beast 17355 | -6/Garrison | Triggered checkpoint 17361 | -6/Garrison | Garrison Relay disabled 17409 | -6/Garrison | Destroyed B-75 Beast 17451 | -6/Garrison | Rewired B-86 Titan 17676 | -6/Garrison | Triggered checkpoint 17728 | -6/Garrison | Spotted B-75 Beast 17766 | -6/Garrison | Destroyed B-75 Beast 17780 | -6/Garrison | Triggered checkpoint 17852 | -6/Garrison | Lost 4 parts (3n1u) 18140 | -6/Garrison | Discovered new exit (range 8) 18167 | -6/Garrison | Triggered checkpoint 18210 | -6/Garrison | Garrison Relay disabled 18517 | -6/Garrison | Build established: Scavenger-Mutant 18519 | -6/Garrison | Destroyed 16 combat bots 18644 | -6/Garrison | Discovered new exit (range 13) 18704 | -6/Garrison | Lost 3 parts (1p1n1u) 18745 | -6/Garrison | Triggered checkpoint 18950 | -6/Garrison | Build established: Hauler-Mutant 18952 | -6/Garrison | Garrison Relay disabled 19085 | -6/Garrison | Triggered checkpoint 19244 | -6/Garrison | Discovered new exit (range 12) 19255 | -6/Garrison | Triggered checkpoint 19290 | -6/Garrison | Garrison Relay disabled 19333 | -6/Garrison | Entered Factory 19333 | -6/Factory | Accompanied by 4 allies 19397 | -6/Factory | Identified exit to DSF 19414 | -6/Factory | Entered DSF 19414 | -6/DSF | Accompanied by 4 allies 19460 | -6/DSF | Additional patrols routed to DSF 19618 | -6/DSF | Sterilization system engaged 19628 | -6/DSF | Discovered exit to Factory (range 14) 19638 | -6/DSF | Ambient heat levels rising (+10) 19653 | -6/DSF | Ambient heat levels rising (+10) 19663 | -6/DSF | Entered Factory 19663 | -5/Factory | Accompanied by 1 ally 19663 | -5/Factory | Evolved 2 slots: Power x1, Utility x1 19664 | -5/Factory | Identified exit to Upper Caves 19664 | -5/Factory | Identified exit to Extension 20046 | -5/Factory | Identified exit to Factory 20520 | -5/Factory | Identified exit to Garrison 20520 | -5/Factory | Entered Garrison 20588 | -5/Garrison | Triggered checkpoint 20725 | -5/Garrison | Garrison Relay disabled 20902 | -5/Garrison | Destroyed 8 combat bots 21019 | -5/Garrison | Triggered checkpoint 21033 | -5/Garrison | Triggered checkpoint 21088 | -5/Garrison | Destroyed 8 combat bots 21126 | -5/Garrison | Discovered new exit (range 11) 21146 | -5/Garrison | Triggered checkpoint 21192 | -5/Garrison | Garrison Relay disabled 21396 | -5/Garrison | Triggered checkpoint 21414 | -5/Garrison | Garrison Relay disabled 21436 | -5/Garrison | Discovered new exit (range 13) 21666 | -5/Garrison | Triggered checkpoint 21717 | -5/Garrison | Garrison Relay disabled 21732 | -5/Garrison | Discovered new exit (range 38) 21732 | -5/Garrison | Discovered new exit (range 71) 21732 | -5/Garrison | Discovered new exit (range 13) 21782 | -5/Garrison | Spotted B-86 Titan 21789 | -5/Garrison | Destroyed B-86 Titan 21795 | -5/Garrison | Spotted B-75 Beast 21827 | -5/Garrison | Destroyed B-75 Beast 21874 | -5/Garrison | Rewired B-86 Titan 21914 | -5/Garrison | Rewired B-86 Titan 22008 | -5/Garrison | Triggered checkpoint 22106 | -5/Garrison | Phase Generator disabled 22472 | -5/Garrison | Entered Factory 22472 | -5/Factory | Accompanied by 2 allies 22772 | -5/Factory | First assault squad dispatched 22885 | -5/Factory | Discovered exit to Factory (range 15) 22975 | -5/Factory | Destroyed 7 combat bots 23215 | -5/Factory | Identified exit to Garrison 23215 | -5/Factory | Entered Garrison 23287 | -5/Garrison | Triggered checkpoint 23295 | -5/Garrison | Garrison Relay disabled 23441 | -5/Garrison | Destroyed 9 combat bots 23515 | -5/Garrison | Triggered checkpoint 23549 | -5/Garrison | Destroyed 13 combat bots 23803 | -5/Garrison | Triggered checkpoint 23812 | -5/Garrison | Garrison Relay disabled 23826 | -5/Garrison | Garrison Relay disabled 23858 | -5/Garrison | Discovered exit to Factory (range 13) 23863 | -5/Garrison | Phase Generator disabled 23962 | -5/Garrison | Triggered checkpoint 24050 | -5/Garrison | Discovered exit to Factory (range 10) 24205 | -5/Garrison | Triggered checkpoint 24280 | -5/Garrison | Destroyed 8 combat bots 24343 | -5/Garrison | Garrison Relay disabled 24403 | -5/Garrison | Triggered checkpoint 24471 | -5/Garrison | Discovered exit to Factory (range 13) 24517 | -5/Garrison | Triggered checkpoint 24561 | -5/Garrison | Rescued a captive Derelict 24589 | -5/Garrison | Garrison Relay disabled 24622 | -5/Garrison | Build established: Commander-Mutant 24672 | -5/Garrison | Entered Factory 24672 | -4/Factory | Accompanied by 9 allies 24672 | -4/Factory | Evolved 2 slots: Utility x2 24830 | -4/Factory | Discovered new exit (range 5) 25100 | -4/Factory | Identified exit to Upper Caves 25125 | -4/Factory | Entered Upper Caves 25125 | -4/Upper Caves | Accompanied by 9 allies 25126 | -4/Upper Caves | P-70 Sage assimilated allied Warrior 6a 25170 | -4/Upper Caves | Attracted the attention of an 0b10 checkpoint 25444 | -4/Upper Caves | Build established: Commander-Skirmisher 25558 | -4/Upper Caves | Learned Research emergency access door positions 25827 | -4/Upper Caves | Discovered new exit (range 5) 25910 | -4/Upper Caves | Spotted B-86 Titan 25979 | -4/Upper Caves | Lost 5 allies 26333 | -4/Upper Caves | Build established: Hauler-Skirmisher 26732 | -4/Upper Caves | Identified exit to Upper Caves 26749 | -4/Upper Caves | Entered another Upper Caves area 26749 | -4/Upper Caves | Accompanied by 2 allies 26884 | -4/Upper Caves | Discovered new exit (range 11) 27715 | -4/Upper Caves | Attracted the attention of an 0b10 checkpoint 27842 | -4/Upper Caves | Found Alien Artifact 27842 | -4/Upper Caves | Identified Core Expander 27842 | -4/Upper Caves | Installed Core Expander, added new Weapon slot 28066 | -4/Upper Caves | Encountered a Warlord checkpoint 28069 | -4/Upper Caves | Learned 4 Research zone layouts 28097 | -4/Upper Caves | Discovered new exit (range 7) 28256 | -4/Upper Caves | Identified exit to Warlord 28274 | -4/Upper Caves | Entered Warlord 28389 | -4/Warlord | Learned location of Testing (-2) 28389 | -4/Warlord | Learned 4 Access zone layouts 28389 | -4/Warlord | Learned 4 Command zone layouts 28391 | -4/Warlord | Learned Testing security intel 28391 | -4/Warlord | Learned Armory scanalyzer intel 28391 | -4/Warlord | Learned Research scanalyzer intel 28471 | -4/Warlord | Found Prototype Special Weapon 28474 | -4/Warlord | Found Prototype Special Weapon 28476 | -4/Warlord | Found Prototype Special Weapon 28479 | -4/Warlord | Found Prototype Special Weapon 28480 | -4/Warlord | Identified RU-N14's Throwing Claymores v3 (x4) 28484 | -4/Warlord | Found RU-N14's Throwing Claymores v3 28487 | -4/Warlord | Found RU-N14's Throwing Claymores v3 28610 | -4/Warlord | Received a Watcher feed algorithm from an ecstatic Tinkerer 28641 | -4/Warlord | Build established: Hauler-Tank 28712 | -4/Warlord | Visited the Vortex Lab 28725 | -4/Warlord | Found Prototype Piercing Weapon 28726 | -4/Warlord | Warlord's base attacked by MAIN.C 28728 | -4/Warlord | Found Prototype Piercing Weapon 28731 | -4/Warlord | Found Prototype Launcher 28817 | -4/Warlord | Identified Vortex Lance (x2) 28835 | -4/Warlord | Met Warlord 28842 | -4/Warlord | Identified Vortex Catalyst Activator 28917 | -4/Warlord | Found Prototype Reactor 28919 | -4/Warlord | Identified Vortex Chain Reactor 28923 | -4/Warlord | Found Prototype Device 28923 | -4/Warlord | Identified Exp. Cloaking Device 28986 | -4/Warlord | Found Prototype Hackware 28990 | -4/Warlord | Found Prototype Processor 28992 | -4/Warlord | Identified Ghost Barrier 28995 | -4/Warlord | Found Prototype Device 29021 | -4/Warlord | Identified Thermal Barrier 29043 | -4/Warlord | Identified Spectral Analyzer 29076 | -4/Warlord | Warlord forces counterattacked 29147 | -4/Warlord | Found Prototype Ballistic Cannon 29147 | -4/Warlord | Identified Hvy. Autocannon 29213 | -4/Warlord | Lost 7 allies 29214 | -4/Warlord | Spotted Executioner 29217 | -4/Warlord | Spotted Striker 29230 | -4/Warlord | Discovered new exit (range 12) 29250 | -4/Warlord | Identified exit to Proximity Caves 29253 | -4/Warlord | Entered Proximity Caves 29275 | -3/Proximity Caves | Lost 7 allies 29476 | -3/Proximity Caves | Spotted B-86 Titan 29626 | -3/Proximity Caves | Destroyed B-86 Titan 30749 | -3/Proximity Caves | Discovered new exit (range 7) 30874 | -3/Proximity Caves | Identified exit to Research 30877 | -3/Proximity Caves | Entered Research 30877 | -3/Research | Evolved 2 slots: Propulsion x2 30880 | -3/Research | Loaded intel: 6 scanalyzer locations 30881 | -3/Research | Loaded intel: 4 garrison access locations 31319 | -3/Research | Found Prototype Device 31323 | -3/Research | Found Prototype Device 31350 | -3/Research | Identified Exp. Shield Generator (x2) 31393 | -3/Research | Found Prototype Protection 31520 | -3/Research | Identified Centrium Heavy Armor Plating 31945 | -3/Research | Discovered new exit (range 11) 31945 | -3/Research | Spotted B-90 Cyclops 31974 | -3/Research | Destroyed B-90 Cyclops 31998 | -3/Research | Identified exit to Quarantine 32168 | -3/Research | Entered Quarantine 32183 | -3/Quarantine | Found Alien Artifact 32246 | -3/Quarantine | Found Alien Artifact 32362 | -3/Quarantine | Found Alien Artifact 32374 | -3/Quarantine | Found Prototype Processor 32397 | -3/Quarantine | Found Prototype Processor 32424 | -3/Quarantine | Identified Exp. Target Analyzer (x2) 32486 | -3/Quarantine | Found Alien Energy Cannon 32691 | -3/Quarantine | Destroyed 10 combat bots 32934 | -3/Quarantine | Found Alien Artifact 32949 | -3/Quarantine | Found Alien Artifact 32949 | -3/Quarantine | Identified Dimensional Node Initializer (x2) 32949 | -3/Quarantine | Initialized slip node 32964 | -3/Quarantine | Found Alien Artifact 32964 | -3/Quarantine | Identified Hpw. Transdimensional Reconstructor 32964 | -3/Quarantine | Warped through subspace to slip node 32973 | -3/Quarantine | Found Hpw. Transdimensional Reconstructor 32973 | -3/Quarantine | Warped through subspace to slip node 32989 | -3/Quarantine | Found Alien Artifact 32991 | -3/Quarantine | Found Alien Artifact 33014 | -3/Quarantine | Found Alien Reactor 33047 | -3/Quarantine | Identified Core Cannon 33115 | -3/Quarantine | Scanned by Researcher 33267 | -3/Quarantine | Central database locked down 33267 | -3/Quarantine | Identified Terrabomb 33267 | -3/Quarantine | Identified Subatomic Replicator 33267 | -3/Quarantine | Identified Transdimensional Reconstructor (x2) 33267 | -3/Quarantine | Identified Matter Drive 33325 | -3/Quarantine | Discovered new exit (range 6) 33333 | -3/Quarantine | Found Alien Artifact 33491 | -3/Quarantine | Identified Phase Armor 33500 | -3/Quarantine | Spotted Fortress 33603 | -3/Quarantine | Discovered new exit (range 6) 33603 | -3/Quarantine | Discovered new exit (range 6) 33609 | -3/Quarantine | Identified exit to Protoforge 33630 | -3/Quarantine | Entered Protoforge 33672 | -3/Protoforge | Superfortress began startup sequence 33753 | -3/Protoforge | Spotted Hotshot 33773 | -3/Protoforge | Spotted Hotshot 33781 | -3/Protoforge | Spotted Hotshot 33811 | -3/Protoforge | Spotted Hotshot 33882 | -3/Protoforge | Discovered new exit (range 15) 33888 | -3/Protoforge | Spotted Hotshot 33890 | -3/Protoforge | Spotted Hotshot 33891 | -3/Protoforge | Spotted Hotshot 33912 | -3/Protoforge | Spotted Hotshot 33918 | -3/Protoforge | Destroyed Hotshot 33921 | -3/Protoforge | Destroyed Hotshot 33936 | -3/Protoforge | Destroyed Hotshot 33945 | -3/Protoforge | Destroyed Hotshot 33975 | -3/Protoforge | Initialized slip node 34048 | -3/Protoforge | Identified exit to Research 34329 | -3/Protoforge | Found Prototype Storage 34334 | -3/Protoforge | Found Prototype Storage 34338 | -3/Protoforge | Found Prototype Storage 34373 | -3/Protoforge | Identified Cep. Chromion Battery (x3) 34408 | -3/Protoforge | Additional patrols dispatched to research labs 34439 | -3/Protoforge | Found Prototype Device 34446 | -3/Protoforge | Found Prototype Device 34456 | -3/Protoforge | Found Prototype Device 34457 | -3/Protoforge | Identified Exp. System Purifier (x2) 34458 | -3/Protoforge | Identified Crosscalibrator 34480 | -3/Protoforge | Spotted Immortal 34483 | -3/Protoforge | Spotted Immortal 34493 | -3/Protoforge | Destroyed Immortal 34496 | -3/Protoforge | Destroyed Immortal 34496 | -3/Protoforge | Spotted Decapitator 34496 | -3/Protoforge | Spotted Decapitator 34506 | -3/Protoforge | Destroyed Decapitator 34506 | -3/Protoforge | Destroyed Decapitator 34507 | -3/Protoforge | Spotted Decapitator 34508 | -3/Protoforge | Spotted Decapitator 34509 | -3/Protoforge | Destroyed Decapitator 34515 | -3/Protoforge | Destroyed Decapitator 34535 | -3/Protoforge | System corruption reached 10% 34631 | -3/Protoforge | Found Prototype Device 34637 | -3/Protoforge | Found Prototype Device 34641 | -3/Protoforge | Found Cep. Antigrav Storage Unit 34646 | -3/Protoforge | Found Cep. Antigrav Storage Unit 34652 | -3/Protoforge | Found Cep. NT7 Matterbank 34747 | -3/Protoforge | Identified Cep. Matter Streamer (x2) 34867 | -3/Protoforge | Spotted Hotshot 34867 | -3/Protoforge | Spotted Hotshot 34867 | -3/Protoforge | Spotted Hotshot 34867 | -3/Protoforge | Spotted Hotshot 34890 | -3/Protoforge | Destroyed Hotshot 34902 | -3/Protoforge | Destroyed Hotshot 34906 | -3/Protoforge | Destroyed Hotshot 34917 | -3/Protoforge | Destroyed Hotshot 34984 | -3/Protoforge | Found Corrupted Prototype Device 34987 | -3/Protoforge | Found Corrupted Prototype Device 34991 | -3/Protoforge | Found Prototype Processor 35001 | -3/Protoforge | Identified Cep. Melee Reflex Suite 35026 | -3/Protoforge | Identified Cep. Weapon Articulator (x2) 35049 | -3/Protoforge | Found Cep. Hypertargeting System 35052 | -3/Protoforge | Found Cep. Networked Targeting System 35056 | -3/Protoforge | Found Cep. Networked Targeting System 35082 | -3/Protoforge | Found Exp. Kinecellerator 35130 | -3/Protoforge | First assault squad dispatched 35227 | -3/Protoforge | Destroyed 13 combat bots 35248 | -3/Protoforge | Found Exp. System Purifier 35274 | -3/Protoforge | Forge Plexus network access discovered 35438 | -3/Protoforge | Spotted Decapitator 35438 | -3/Protoforge | Spotted Decapitator 35448 | -3/Protoforge | Destroyed Decapitator 35460 | -3/Protoforge | Destroyed Decapitator 35509 | -3/Protoforge | Build established: Tank 35576 | -3/Protoforge | Found Cep. Combat Aerolev Unit 35641 | -3/Protoforge | Spotted Decapitator 35646 | -3/Protoforge | Spotted Decapitator 35647 | -3/Protoforge | Spotted Decapitator 35649 | -3/Protoforge | Spotted Decapitator 35656 | -3/Protoforge | Destroyed Decapitator 35662 | -3/Protoforge | Destroyed Decapitator 35665 | -3/Protoforge | Destroyed Decapitator 35673 | -3/Protoforge | Destroyed Decapitator 35696 | -3/Protoforge | Lost 4 parts (1p2u1w) 35729 | -3/Protoforge | Spotted Decapitator 35729 | -3/Protoforge | Spotted Decapitator 35729 | -3/Protoforge | Spotted Decapitator 35729 | -3/Protoforge | Spotted Decapitator 35795 | -3/Protoforge | Found Cep. EMP Blanket Launcher 35796 | -3/Protoforge | Found Cep. EMP Blanket Launcher 35798 | -3/Protoforge | Found Faulty Cep. Tactical Fusion Warhead 35806 | -3/Protoforge | Found Faulty Cep. Tactical Fusion Warhead 35809 | -3/Protoforge | Found Cep. Rapid Grenade Launcher 35825 | -3/Protoforge | Found Faulty Cep. Rapid Grenade Launcher 35860 | -3/Protoforge | Spotted Immortal 35860 | -3/Protoforge | Spotted Immortal 35870 | -3/Protoforge | Destroyed Immortal 35877 | -3/Protoforge | Destroyed Immortal 35880 | -3/Protoforge | Spotted V334-n 35894 | -3/Protoforge | Found Faulty Cep. Zero-point Core 35901 | -3/Protoforge | Spotted V975-e 35901 | -3/Protoforge | Spotted V708-h 35907 | -3/Protoforge | Found Cep. Zero-point Core 35932 | -3/Protoforge | Build established: Sprinter 35999 | -3/Protoforge | Destroyed Decapitator 36001 | -3/Protoforge | Destroyed Decapitator 36001 | -3/Protoforge | Destroyed Decapitator 36001 | -3/Protoforge | Destroyed Decapitator 36022 | -3/Protoforge | Destroyed 9 combat bots 36024 | -3/Protoforge | Found Faulty Cep. Lightning Penetrator 36026 | -3/Protoforge | Found Faulty Cep. Plasma Driver 36028 | -3/Protoforge | Found Cep. Heavy Railcannon 36033 | -3/Protoforge | Found Faulty Cep. Helical Railcannon 36037 | -3/Protoforge | Found Cep. Helical Railcannon 36042 | -3/Protoforge | Found Faulty Cep. Disintegration Ray 36044 | -3/Protoforge | Found Faulty Cep. Disintegration Ray 36046 | -3/Protoforge | Found Cep. Helical Railcannon 36053 | -3/Protoforge | Found Faulty Cep. Plasma Driver 36055 | -3/Protoforge | Found Faulty Cep. Plasma Driver 36058 | -3/Protoforge | Found Cep. Lightning Penetrator 36151 | -3/Protoforge | Spotted AP7-3 36152 | -3/Protoforge | Destroyed AP7-3 36154 | -3/Protoforge | Spotted AP7-3 36157 | -3/Protoforge | Destroyed AP7-3 36171 | -3/Protoforge | Found Prototype Energy Gun 36171 | -3/Protoforge | Identified Enh. Gamma Rifle 36179 | -3/Protoforge | Found Cep. Cloak Mesh 36181 | -3/Protoforge | Found Cep. Thermoelectric Network 36183 | -3/Protoforge | Found Faulty Cep. Core Analysis Suite 36349 | -3/Protoforge | Spotted V099-h 36350 | -3/Protoforge | Destroyed 9 combat bots 36352 | -3/Protoforge | Spotted V276-u 36353 | -3/Protoforge | Spotted V858-e 36355 | -3/Protoforge | Found Cep. Network Penetrator 36365 | -3/Protoforge | Used Subatomic Replicator to replicate Faulty Cep. Core Analysis Suite 36398 | -3/Protoforge | Found Faulty Cep. Gyrokinetic System 36403 | -3/Protoforge | Found Faulty Cep. Gyrokinetic System 36411 | -3/Protoforge | Found Faulty Cep. Gyrokinetic System 36442 | -3/Protoforge | Spotted V755-w 36443 | -3/Protoforge | Spotted V262-b 36443 | -3/Protoforge | Spotted V349-i 36450 | -3/Protoforge | Core integrity fell below 50% 36479 | -3/Protoforge | Destroyed V755-w 36504 | -3/Protoforge | Destroyed V262-b 36513 | -3/Protoforge | Destroyed V349-i 36548 | -3/Protoforge | Found Cep. Phase Shift Module 36552 | -3/Protoforge | Found Cep. Hardlight Director 36554 | -3/Protoforge | Found Cep. Reaction Jets 36557 | -3/Protoforge | Found Faulty Cep. Reaction Jets 36566 | -3/Protoforge | Found Cep. Phase Shift Module 36606 | -3/Protoforge | Warped through subspace to slip node 36608 | -3/Protoforge | Found Cep. Hypertargeting System 36615 | -3/Protoforge | Spotted Decapitator 36615 | -3/Protoforge | Spotted Decapitator 36615 | -3/Protoforge | Spotted Decapitator 36615 | -3/Protoforge | Spotted Decapitator 36617 | -3/Protoforge | Entered Research 36617 | -2/Research | Warlord forces began assault on 0b10 36617 | -2/Research | Evolved 2 slots: Power x1, Propulsion x1 36628 | -2/Research | Found Prototype Device 36642 | -2/Research | Distinguished unit "Golden Rifle" dispatched to help 36642 | -2/Research | Distinguished unit "Knights of the Pentagonal Table" dispatched to help 36651 | -2/Research | Spotted B-90 Cyclops 36666 | -2/Research | Spotted B-90 Cyclops 36727 | -2/Research | Research machine network offline 36822 | -2/Research | Discovered new exit (range 9) 36856 | -2/Research | P-80 Master assimilated allied 3F-CSZ(s) 36857 | -2/Research | Discovered new exit (range 17) 36915 | -2/Research | Lost 5 allies 36949 | -2/Research | High security lockdown imminent 36956 | -2/Research | Spotted Executioner 37029 | -2/Research | High security lockdown engaged 37032 | -2/Research | Spotted Striker 37034 | -2/Research | Spotted Striker 37080 | -2/Research | Spotted Striker 37080 | -2/Research | Spotted Striker 37080 | -2/Research | Spotted Executioner 37080 | -2/Research | Spotted Striker 37089 | -2/Research | Spotted Striker 37090 | -2/Research | Spotted Executioner 37099 | -2/Research | Entered Access 37099 | -1/Access | Evolved 2 slots: Utility x2 37100 | -1/Access | Identified exit to Command 37101 | -1/Access | Identified exit to Surface 37120 | -1/Access | Lost 4 allies 37278 | -1/Access | Unchained authorized (CL-0N3) 37349 | -1/Access | First assault squad dispatched 37429 | -1/Access | Entered Command 37458 | -1/Command | Disengaged cave seal 37474 | -1/Command | Spotted M Guard 37474 | -1/Command | Spotted M Guard 37475 | -1/Command | Spotted Combat Programmer 37475 | -1/Command | Spotted Combat Programmer 37504 | -1/Command | Destroyed M Guard 37510 | -1/Command | Destroyed M Guard 37511 | -1/Command | Destroyed Combat Programmer 37514 | -1/Command | Destroyed Combat Programmer 37514 | -1/Command | All MAIN.C guards destroyed 37517 | -1/Command | Welcomed Warlord to Command 37523 | -1/Command | Found Prototype Protection 37523 | -1/Command | Identified Hvy. Regenerative Plating 37526 | -1/Command | Found Prototype Device 37526 | -1/Command | Identified AEGIS Remote Shield 37595 | -1/Command | Met MAIN.C 37595 | -1/Command | 0b10 Conduit disabled 37607 | -1/Command | Destroyed MAIN.C Shell 37610 | -1/Command | MAIN.C activated Command garrisons 37612 | -1/Command | Warlord commented on Warlord statues 37657 | -1/Command | Destroyed MAIN.C 37660 | *** | Establishing Free Derelict Territories! Last Messages --------------- 37655_ 70-S8L(p) resets UZ-9CC(K), system corruption cleaned. 37656_ Dropped Cep. NT7 Matterbank. 37657_ Extracted 268 matter. 37657_ 77-7RY(p) resets 5P-YV2(L), system corruption cleaned. 37657_ Railslug penetrates MAIN.C. 37657_ MAIN.C: "I hope you know you're still going to DIE HERE WITH ME!" 37657_ MAIN.C destroyed. 37657_ Railslug penetrates Reinforced Barrier. 37658_ Extracted 34 matter. 37659_ Overheating: Energy bleed (-24). Warlord: Victory! Sure there's still lots to do, but without MAIN.C at the helm 0b10 doesn't stand a chance. We've got this... [Achievement: Warlord Forever!] Map ----- +----------------------------------------------------+ | ?????????????????????????????????????????????????? | | ?????????????????????????????????????????????????? | | ?????????????????????????????????????????????????? | | ?????????????????????????????????????????????????? | | ?????????????????????????????????????????????????? | | ?????????????????????????????????????????????????? | | ?????????????????????????????????????????????????? | | ?????????????????????????????????????????????????? | | ?????????????????????????????????????????????????? | | ?????????????????????????????????????????????????? | | ?????????????????????????????????????????????????? | | ?????????????????????????????????????????????????? | | ?????????????????????????????????????????????????? | | ?????????????????????????????????????????????????? | | ?????????????????????????????????????????????????? | | ?????????????????????????????????????????????????? | | ?????????????????????????????????????????????????? | | ?????????????????????????????????????????????????? | | ?????????????????????????????????????????????????? | | ?????????????????????????????????????????????????? | | ?????????????????????????????????????????????????? | | ??????????????????????????????????????????####???? | | ?????????????????????????????????????????????#???? | | ?????????????????????#######################?#???? | | ?????????????????????#"" K$% """" ####### | | ?????????????????????#"" @ "" #?#???? | | ?????????????????????#" % "" ####### | | ?????????????????????# %Lpm pp / | | ?????????????????????#" % L " ]/] | | ?????????????????????#"" " W g / | | ?????????????????????#"" "" %%% % ####### | | ?????????????????????# " """ p #?#???? | | ?????????????????????# " % % ! ####### | | ?????????????????????# " " !%] "#?#???? | | ?????????????????????#""""""""" =% """"#?#???? | | ?????????????????????#"" """"""""#?????? | | ?????????????????????? """"""""#?????? | | ?????????????????????# " " " #?????? | | ?????????????????????# " " " "???????? | | ?????????????????????? " " " """" ????????? | | ??????????????????????? """ " " "??????????? | | ?????????????????????? " " " ???????????? | | ?????????????????????? """""""""" ???????????? | | ?????????????????????? "???" " """???????????? | | ?????????????????????????????" ? ??????????????? | | ?????????????????????????????????#???????????????? | | ?????????????????????????????????????????????????? | | ?????????????????????????????????????????????????? | | ?????????????????????????????????????????????????? | | ?????????????????????????????????????????????????? | +----------------------------------------------------+ Best States ------------- Heat Dissipation 82 Coolant Potential 120 Energy Generation 65 Energy Capacity 2170 Matter Stores 300 Matter Capacity 300 Sight Range 24 Robot Scan Range 16 Terrain Scan Range 18 Terrain Scan Density 135 Jamming Range 14 Cloak Strength 6 Additional Mass Support 12 Armor Coverage 1200 Resistance: KI 30 Resistance: EM 30 Weapon Cycling 25 Phase Shifting 25 Evasion (%) 102 Targeting Accuracy 12 Core Analysis 11 Armor Integrity Analysis 40 Recoil Reduction 8 Kinecelleration 66 Offensive Hacking 50 Defensive Hacking 26 Authchip Count 1 Item Schematics ----------------- Multitool | -8/Materials | Scanalyzed Hrd. Heavy Armor Plating | -8/Materials | Scanalyzed Arm. Treads | -8/Materials | Scanalyzed Matter Filter | -7/Zion | Archive Imp. Reaction Control System | -7/Zion | Archive Imp. Carbon-fiber Leg | -7/Zion | Archive EM Shield | -7/Zion | Archive Thermal Shield | -7/Zion | Archive Flak Gun | -7/Zion | Archive Remote Force Field | -7/Zion | Archive Variable Charge Gun | -7/Zion | Archive Hvy. Rocket Launcher | -7/Zion | Archive Magnetic Acceleration Cannon | -7/Zion | Archive Spear | -7/Zion | Archive IFF Parser | -7/Zion | Archive Adv. Melee Analysis Suite | -7/Zion | Archive System Restoration Module | -7/Zion | Archive Adv. Variable Charge Gun | -3/Quarantine | Archive Com. Tesla Bomb Launcher | -3/Quarantine | Archive Plasma Sword | -3/Quarantine | Archive Hvy. Gatling Laser | -3/Protoforge | Archive Adv. Myomer Leg | -3/Protoforge | Archive Prc. Matter Filter | -3/Protoforge | Archive Cld. Plasma Rifle | -3/Protoforge | Archive Exp. EM Disruption Field | -3/Protoforge | Archive Cld. Impulse Thruster | -3/Protoforge | Archive Nanosword | -3/Protoforge | Archive Centrium Medium Armor Plating | -3/Protoforge | Archive Prc. Phase Gun | -3/Protoforge | Archive Enh. Biometal Leg | -3/Protoforge | Archive Exp. Flexi-carbon Leg | -3/Protoforge | Archive Exp. Coolant Injector | -3/Protoforge | Archive Molecular Scythe | -3/Protoforge | Archive Robot Schematics ------------------ A-02 Transporter | -7/Zion | Archive R-06 Scavenger | -7/Zion | Archive Y-54 Guardian | -7/Zion | Archive C-57 Dissector | -7/Zion | Archive R-10 Processor | -3/Quarantine | Archive Fabricated ------------ Adv. Field Recycling Unit | x2 | -6/Factory | Preloaded Repaired ---------- Hrd. Medium Armor Plating | 27% | -7/Factory Studied --------- Wheel | -8/Materials | Hacked Imp. Treads | -8/Materials | Hacked Gauss Rifle | -7/Factory | Hacked Hvy. Assault Cannon | -7/Factory | Hacked HERF Cannon | -3/Research | Hacked Hyp. Gauss Cannon | -3/Research | Hacked Com. HERF Cannon | -3/Quarantine | Hacked Nova Cannon | -3/Protoforge | Hacked Alien Tech Used ----------------- Core Expander Dimensional Node Initializer High-powered Transdimensional Reconstructor Core Cannon Phase Armor Matter Drive Subatomic Replicator Transdimensional Reconstructor Achievements -------------- Bullet Installation I Like You, Cogmind King Drone Showdown Special Forces Warlord Forever! Challenges ------------ None Game ------ Seed RecoilExplosiveScrapsphere Manual? 0 Play Time 08:33:21 Cumulative 851.9 hours Start 2025.12.20 @ 12:33:47 End 2025.12.21 @ 12:56:56 Sessions 3 Manual Loads 0 Difficulty Rogue Special Mode None Game No. 190 Rogue 190 Adventurer 0 Explorer 0 Win Type 7 Total 53 Types 13/9/11/2/2/1/9/3/1/2 Lore% 83 Gallery% 87 Achievement% 75 Wizard Run 0 Options --------- Layout 1 ASCII 0 Keyboard 0 Movement Mouse Keybinds 0 Fullscreen 1 Font 24/Smallcaps Map View 50x35 Zoom Use 1% Tactical HUD 1 Map Filters NONE Filters NONE Steam 1 RUN: 1d9f0cc1-6812-47d9-bc36-53c1ff564fef